Department Family,Entity,Date,Expense Type,Expense Area,Supplier,Transaction Number,AP Amount,Purchase Invoice Number
Department of Health,Southport and Ormskirk Hospital NHS Trust,30/04/2018,Computer Software/License,Payroll,SOFTCAT PLC,26214216,34048.8,INV01847798
Department of Health,Southport and Ormskirk Hospital NHS Trust,30/04/2018,P&M Additions,Balance Sheet,BRANDON MEDICAL CO LTD,26250365,69568.38,139216
Department of Health,Southport and Ormskirk Hospital NHS Trust,30/04/2018,Computer Maintenance,IT,LANCASHIRE CARE NHS FOUNDATION TRUST,26250718,30472.94,I0054719
Department of Health,Southport and Ormskirk Hospital NHS Trust,30/04/2018,Other Liabilities - Curr,Balance Sheet,XEROX (UK) LTD,26250728,27750.96,1607747706
Department of Health,Southport and Ormskirk Hospital NHS Trust,30/04/2018,NonNHS Trade Pybls Curr,Balance Sheet,NHS SUPPLY CHAIN,26250754,64611.78,1018250983
Department of Health,Southport and Ormskirk Hospital NHS Trust,30/04/2018,Other Liabilities - Curr,Balance Sheet,XEROX (UK) LTD,26250771,-27750.96,1607890497
Department of Health,Southport and Ormskirk Hospital NHS Trust,30/04/2018,Other NHS Payables <1Yr,Balance Sheet,NHS PROFESSIONALS LTD,26250936,116214.76,I000009677P
Department of Health,Southport and Ormskirk Hospital NHS Trust,30/04/2018,NonNHS Trade Pybls Curr,Balance Sheet,L ROWLAND & CO LTD,26250937,138827.95,1800000155
Department of Health,Southport and Ormskirk Hospital NHS Trust,30/04/2018,Other Clinical Costs,Pharmacy,L ROWLAND & CO LTD,26250937,34186,1800000155
Department of Health,Southport and Ormskirk Hospital NHS Trust,30/04/2018,Other Operatg Rev Non NHS,Car Park SDGH,L ROWLAND & CO LTD,26250937,236.41,1800000155
Department of Health,Southport and Ormskirk Hospital NHS Trust,30/04/2018,Other Operatg Rev Non NHS,Pharmacy,L ROWLAND & CO LTD,26250937,-249,1800000155
Department of Health,Southport and Ormskirk Hospital NHS Trust,30/04/2018,Prescription Charges Rev,Pharmacy,L ROWLAND & CO LTD,26250937,-3010,1800000155
Department of Health,Southport and Ormskirk Hospital NHS Trust,30/04/2018,Other NHS Payables <1Yr,Balance Sheet,NHS PROFESSIONALS LTD,26250938,26909.91,I000009794P
Department of Health,Southport and Ormskirk Hospital NHS Trust,30/04/2018,Other NHS Payables <1Yr,Balance Sheet,NHS PROFESSIONALS LTD,26250939,127947.7,I000009853P
Department of Health,Southport and Ormskirk Hospital NHS Trust,30/04/2018,Gas,Utilities SDGH,GAZPROM MARKETING & TRADING RETAIL LTD,26274992,72150.34,6023765
Department of Health,Southport and Ormskirk Hospital NHS Trust,30/04/2018,Gas,Utilities SDGH,GAZPROM MARKETING & TRADING RETAIL LTD,26276081,95396.96,5954362
Department of Health,Southport and Ormskirk Hospital NHS Trust,30/04/2018,Gas,Utilities SDGH,GAZPROM MARKETING & TRADING RETAIL LTD,26276082,-95396.96,6023711
Department of Health,Southport and Ormskirk Hospital NHS Trust,30/04/2018,Med Equip Additions,Balance Sheet,OLYMPUS KEYMED,26279348,168169.48,CD2378614
Department of Health,Southport and Ormskirk Hospital NHS Trust,30/04/2018,Contr Photocopier Rental,Supplies,DE LAGE LANDEN LEASING LTD,26286083,38523.75,9.93E+13
Department of Health,Southport and Ormskirk Hospital NHS Trust,30/04/2018,Services Received - NHSTs,Human Resources,ST HELENS & KNOWSLEY HOSPITALS NHS TRUST,26286110,175000,16773959
Department of Health,Southport and Ormskirk Hospital NHS Trust,30/04/2018,NHS Prepayments,Balance Sheet,ST HELENS & KNOWSLEY HOSPITALS NHS TRUST,26286148,-56345.83,16774233
Department of Health,Southport and Ormskirk Hospital NHS Trust,30/04/2018,NonNHS Trade Pybls Curr,Balance Sheet,NHS SUPPLY CHAIN,26286150,59048.53,1018254749
Department of Health,Southport and Ormskirk Hospital NHS Trust,30/04/2018,NonRes Bldg Additions,Balance Sheet,SPACEBUILDER LTD,26286185,160518.53,50833
Department of Health,Southport and Ormskirk Hospital NHS Trust,30/04/2018,NonRes Bldg Additions,Balance Sheet,GE HEALTHCARE LTD,26304026,21704.4,478509
Department of Health,Southport and Ormskirk Hospital NHS Trust,30/04/2018,NonRes Bldg Additions,Balance Sheet,EFT CONSTRUCTION LTD,26309909,65497.56,520
Department of Health,Southport and Ormskirk Hospital NHS Trust,30/04/2018,NonRes Bldg Additions,Balance Sheet,SPACEBUILDER LTD,26310497,66162.16,50837
Department of Health,Southport and Ormskirk Hospital NHS Trust,30/04/2018,Med Equip Additions,Balance Sheet,CARL ZEISS LTD,26310516,58695.04,5140408138
Department of Health,Southport and Ormskirk Hospital NHS Trust,30/04/2018,F&F Additions,Balance Sheet,PENKETHS LTD,26317892,47896.8,SINV30109066
Department of Health,Southport and Ormskirk Hospital NHS Trust,30/04/2018,F&F Additions,Balance Sheet,HILL-ROM LTD,26317897,34872.11,JQ405
Department of Health,Southport and Ormskirk Hospital NHS Trust,30/04/2018,Computer Software/License,IT,PHOENIX SOFTWARE LTD,26322838,54306.43,OPI817292
Department of Health,Southport and Ormskirk Hospital NHS Trust,30/04/2018,Non NHS Prepayments,Balance Sheet,WEST LANCASHIRE BOROUGH COUNCIL,26330509,28101,1.22E+18
Department of Health,Southport and Ormskirk Hospital NHS Trust,30/04/2018,Non NHS Prepayments,Balance Sheet,WEST LANCASHIRE BOROUGH COUNCIL,26332546,470815,1.22E+19
Department of Health,Southport and Ormskirk Hospital NHS Trust,30/04/2018,Non NHS Prepayments,Balance Sheet,SEFTON METROPOLITAN BOROUGH COUNCIL,26332548,557090,7.61E+19
Department of Health,Southport and Ormskirk Hospital NHS Trust,30/04/2018,External Consultancy Fees,Service Improvement,ERNST & YOUNG LLP,26333667,186740,GB10300031102
Department of Health,Southport and Ormskirk Hospital NHS Trust,30/04/2018,Consultant,Pathology General,ST HELENS & KNOWSLEY HOSPITALS NHS TRUST,26344251,2746,16774265
Department of Health,Southport and Ormskirk Hospital NHS Trust,30/04/2018,Services Received - NHSTs,Pathology General,ST HELENS & KNOWSLEY HOSPITALS NHS TRUST,26344251,159614,16774265
Department of Health,Southport and Ormskirk Hospital NHS Trust,30/04/2018,Computer Software/License,Management Accounting,SOFTCAT PLC,26356233,54000,INV01864844
Department of Health,Southport and Ormskirk Hospital NHS Trust,30/04/2018,Income tax - Current,Balance Sheet,INLAND REVENUE CIS,26365489,1063120.95,428PD001291501218
Department of Health,Southport and Ormskirk Hospital NHS Trust,30/04/2018,National Insurance - Curr,Balance Sheet,INLAND REVENUE CIS,26365489,1217298.42,428PD001291501218
Department of Health,Southport and Ormskirk Hospital NHS Trust,30/04/2018,Statutory Mat Pay - Curr,Balance Sheet,INLAND REVENUE CIS,26365489,-18276.39,428PD001291501218
Department of Health,Southport and Ormskirk Hospital NHS Trust,30/04/2018,Statutory Pat Pay - Curr,Balance Sheet,INLAND REVENUE CIS,26365489,-1037.6,428PD001291501218
Department of Health,Southport and Ormskirk Hospital NHS Trust,30/04/2018,Med Equip Additions,Balance Sheet,NHS SUPPLY CHAIN,26365810,58774.12,9058002563
Department of Health,Southport and Ormskirk Hospital NHS Trust,30/04/2018,Other Liabilities - Curr,Balance Sheet,NHS SOUTHPORT AND FORMBY CCG,26384243,49770,7013100186
Department of Health,Southport and Ormskirk Hospital NHS Trust,30/04/2018,Pay Reserves,Central Reserves,NHS PROPERTY SERVICES LTD,26384249,74450.8,NAVS00709
Department of Health,Southport and Ormskirk Hospital NHS Trust,30/04/2018,Pay Reserves,Central Reserves,NHS PROPERTY SERVICES LTD,26384254,35267.36,NAVS00703
Department of Health,Southport and Ormskirk Hospital NHS Trust,30/04/2018,CB Income,Schedule Income,NHS SOUTHPORT AND FORMBY CCG,26384257,130000,7013100402
Department of Health,Southport and Ormskirk Hospital NHS Trust,30/04/2018,Pay Reserves,Central Reserves,NHS PROPERTY SERVICES LTD,26384261,27306.81,NAVS00726
Department of Health,Southport and Ormskirk Hospital NHS Trust,30/04/2018,Contr Estate Management,Central Lancs estates admin,NHS PROPERTY SERVICES LTD,26384298,25510.56,H56355
Department of Health,Southport and Ormskirk Hospital NHS Trust,30/04/2018,Commercial Sector,SIU Intermediate Care Team,REVITALISE RESPITE HOLIDAYS,26384328,28500,549832
Department of Health,Southport and Ormskirk Hospital NHS Trust,30/04/2018,Non NHS Prepayments,Balance Sheet,HOSPEDIA LTD,26384369,39413,SI007574
Department of Health,Southport and Ormskirk Hospital NHS Trust,30/04/2018,Other NHS Payables <1Yr,Balance Sheet,NHS PROFESSIONALS LTD,26384382,110782.76,I000009994P
Department of Health,Southport and Ormskirk Hospital NHS Trust,30/04/2018,Other NHS Payables <1Yr,Balance Sheet,NHS PROFESSIONALS LTD,26384391,48578.08,I000010045P
Department of Health,Southport and Ormskirk Hospital NHS Trust,30/04/2018,Other NHS Payables <1Yr,Balance Sheet,NHS PROFESSIONALS LTD,26384417,150520.74,I000010099P
Department of Health,Southport and Ormskirk Hospital NHS Trust,30/04/2018,Phone Rental and Calls,Telecoms,VIRGIN MEDIA BUSINESS LTD,26384421,29294.4,932072045
Department of Health,Southport and Ormskirk Hospital NHS Trust,30/04/2018,Computer Maintenance,Theatres SDGH,CSC COMPUTER SCIENCES LTD,26385734,30614.4,5278008107
Department of Health,Southport and Ormskirk Hospital NHS Trust,30/04/2018,Computer Maintenance,IT,EMIS (EGTON MEDICAL INFORMATION SYSTEMS LTD),26387046,103800,EMSINV031478
Department of Health,Southport and Ormskirk Hospital NHS Trust,30/04/2018,Income tax - Current,Balance Sheet,INLAND REVENUE CIS,26397484,36335.5,428PZ001404851218
Department of Health,Southport and Ormskirk Hospital NHS Trust,30/04/2018,National Insurance - Curr,Balance Sheet,INLAND REVENUE CIS,26397484,47588.81,428PZ001404851218
Department of Health,Southport and Ormskirk Hospital NHS Trust,30/04/2018,Statutory Mat Pay - Curr,Balance Sheet,INLAND REVENUE CIS,26397484,-518.8,428PZ001404851218
Department of Health,Southport and Ormskirk Hospital NHS Trust,30/04/2018,Med & Surg Maint Contract,EBME SDGH,NHS SUPPLY CHAIN,26404964,77042.88,2018005647
Department of Health,Southport and Ormskirk Hospital NHS Trust,30/04/2018,Med & Surg Maint Contract,EBME SDGH,CLEARVIEW ENDOSCOPY LTD,26418570,208596,2222
Department of Health,Southport and Ormskirk Hospital NHS Trust,30/04/2018,Med Equip Additions,Balance Sheet,OLYMPUS KEYMED,26435840,26971.98,CD2382107
Department of Health,Southport and Ormskirk Hospital NHS Trust,31/05/2018,Med Equip Additions,Balance Sheet,OLYMPUS KEYMED,26435840,134859.92,CD2382107
Department of Health,Southport and Ormskirk Hospital NHS Trust,30/04/2018,Med Equip Additions,Balance Sheet,NHS SUPPLY CHAIN,26444362,-58774.12,9059900005
Department of Health,Southport and Ormskirk Hospital NHS Trust,31/05/2018,Med Equip Additions,Balance Sheet,NHS SUPPLY CHAIN,26444368,58774.12,9059000031
Department of Health,Southport and Ormskirk Hospital NHS Trust,30/04/2018,Med Equip Additions,Balance Sheet,NHS SUPPLY CHAIN,26444377,26820.5,9059000054
Department of Health,Southport and Ormskirk Hospital NHS Trust,30/04/2018,NonRes Bldg Additions,Balance Sheet,EFT CONSTRUCTION LTD,26484944,44890.92,546
Department of Health,Southport and Ormskirk Hospital NHS Trust,30/04/2018,Med & Surg Maint Contract,EBME SDGH,GE MEDICAL SYSTEMS LTD,26486833,51371.41,5026757
Department of Health,Southport and Ormskirk Hospital NHS Trust,30/04/2018,Stocks Finished Goods,Balance Sheet,HEALTHCARE AT HOME LTD,26493933,36622.56,OP/7116032
Department of Health,Southport and Ormskirk Hospital NHS Trust,30/04/2018,Stocks Finished Goods,Balance Sheet,HEALTHCARE AT HOME LTD,26493934,29580,OP/7116104
Department of Health,Southport and Ormskirk Hospital NHS Trust,30/04/2018,Phone Instal & Maint,Telecoms,NETCALL TELECOM LTD,26502369,37010,MINV009140
Department of Health,Southport and Ormskirk Hospital NHS Trust,30/04/2018,Electricity,Utilities SDGH,NPOWER LTD,26504712,-49050.78,K5050003LGU7QB5F
Department of Health,Southport and Ormskirk Hospital NHS Trust,30/04/2018,Electricity,Utilities SDGH,NPOWER LTD,26504714,49042.62,K5050003LGU7QC2F
Department of Health,Southport and Ormskirk Hospital NHS Trust,30/04/2018,Computer Maintenance,Pharmacy,ASCRIBE LTD T/A EMIS HEALTH,26521966,59615.75,PJIN300612
Department of Health,Southport and Ormskirk Hospital NHS Trust,30/04/2018,Other Liabilities - Curr,Balance Sheet,ASCRIBE LTD T/A EMIS HEALTH,26521969,25578.08,PJIN300617
Department of Health,Southport and Ormskirk Hospital NHS Trust,30/04/2018,NonNHS Trade Pybls Curr,Balance Sheet,NHS SUPPLY CHAIN,26521985,50755.36,1019001406
Department of Health,Southport and Ormskirk Hospital NHS Trust,30/04/2018,Other Liabilities - Curr,Balance Sheet,NHS SOUTHPORT AND FORMBY CCG,26521993,-49770,7013100458
Department of Health,Southport and Ormskirk Hospital NHS Trust,30/04/2018,Other NHS Payables <1Yr,Balance Sheet,NHS PROFESSIONALS LTD,26522005,31090.33,I000010184P
Department of Health,Southport and Ormskirk Hospital NHS Trust,30/04/2018,NonNHS Trade Pybls Curr,Balance Sheet,NHS SUPPLY CHAIN,26522016,56239.83,1019008595
Department of Health,Southport and Ormskirk Hospital NHS Trust,30/04/2018,Other NHS Payables <1Yr,Balance Sheet,NHS PROFESSIONALS LTD,26522028,114802.29,I000010240P
Department of Health,Southport and Ormskirk Hospital NHS Trust,30/04/2018,NHS Prepayments,Balance Sheet,NHS BLOOD & TRANSPLANT,26522041,48073.43,870051
Department of Health,Southport and Ormskirk Hospital NHS Trust,30/04/2018,Other NHS Payables <1Yr,Balance Sheet,NHS PROFESSIONALS LTD,26522045,36732.46,I000010342P
Department of Health,Southport and Ormskirk Hospital NHS Trust,30/04/2018,External Consultancy Fees,Chief Executive,WARRINGTON & HALTON HOSPITALS NHS FOUNDATION TRUST,26522055,45000,15368115
Department of Health,Southport and Ormskirk Hospital NHS Trust,30/04/2018,NonNHS Trade Pybls Curr,Balance Sheet,NHS SUPPLY CHAIN,26522060,70814.96,1019010744
Department of Health,Southport and Ormskirk Hospital NHS Trust,30/04/2018,Other NHS Payables <1Yr,Balance Sheet,NHS PROFESSIONALS LTD,26522082,103191.93,I000010399P
Department of Health,Southport and Ormskirk Hospital NHS Trust,30/04/2018,Contr Premises Security,SECURITY SDGH,SAMSON SECURITY LTD,26523332,28108.8,12749
Department of Health,Southport and Ormskirk Hospital NHS Trust,30/04/2018,Stocks Finished Goods,Balance Sheet,NHS BLOOD & TRANSPLANT,26539580,48073.43,869312
Department of Health,Southport and Ormskirk Hospital NHS Trust,30/04/2018,IT Additions,Balance Sheet,VANIX LLP,26543122,49178.2,SIVAN05548
Department of Health,Southport and Ormskirk Hospital NHS Trust,30/04/2018,Legal / Prof Fees,Director Of Nursing,CARE QUALITY COMMISSION,26551055,130920,42324617
Department of Health,Southport and Ormskirk Hospital NHS Trust,31/05/2018,Other NHS Payables <1Yr,Balance Sheet,NHS PROFESSIONALS LTD,26562327,29487.05,I000010453P
Department of Health,Southport and Ormskirk Hospital NHS Trust,31/05/2018,NonNHS Trade Pybls Curr,Balance Sheet,NHS SUPPLY CHAIN,26562345,62555.33,1019018977
Department of Health,Southport and Ormskirk Hospital NHS Trust,31/05/2018,Med & Surg Maint Contract,EBME SDGH,DRIVE DEVILBISS SIDHIL LTD,26585993,25248.83,658552
Department of Health,Southport and Ormskirk Hospital NHS Trust,31/05/2018,Computer Maintenance,Radiology,HEALTHCARE SOFTWARE SOLUTIONS LTD,26598108,26960.7,2121
Department of Health,Southport and Ormskirk Hospital NHS Trust,31/05/2018,NHS Prepayments,Balance Sheet,ST HELENS & KNOWSLEY HOSPITALS NHS TRUST,26618485,360000,16774423
Department of Health,Southport and Ormskirk Hospital NHS Trust,31/05/2018,National QC & Accred Fees,Director Of Nursing,SALFORD ROYAL HOSPITALS NHS FOUNDATION TRUST,26618489,40000,S0015785
Department of Health,Southport and Ormskirk Hospital NHS Trust,31/05/2018,External Consultancy Fees,Service Improvement,FOUR EYES INSIGHT LTD,26619477,236658.48,INVMIG000231
Department of Health,Southport and Ormskirk Hospital NHS Trust,31/05/2018,Contractual Clinical Srv,Pathology General,ST HELENS & KNOWSLEY HOSPITALS NHS TRUST,26660633,630134,16773958
Department of Health,Southport and Ormskirk Hospital NHS Trust,31/05/2018,Contractual Clinical Srv,Pathology General,ST HELENS & KNOWSLEY HOSPITALS NHS TRUST,26660697,630134,16774377
Department of Health,Southport and Ormskirk Hospital NHS Trust,31/05/2018,Other NHS Payables <1Yr,Balance Sheet,NHS PROFESSIONALS LTD,26660717,108558.79,I000010534P
Department of Health,Southport and Ormskirk Hospital NHS Trust,31/05/2018,NonNHS Trade Pybls Curr,Balance Sheet,NHS SUPPLY CHAIN,26660739,68008.48,1019022685
Department of Health,Southport and Ormskirk Hospital NHS Trust,31/05/2018,Computer Maintenance,IT,ASCOM UK LTD,26660741,29954.22,YM244333
Department of Health,Southport and Ormskirk Hospital NHS Trust,31/05/2018,NHS Prepayments,Balance Sheet,ST HELENS & KNOWSLEY HOSPITALS NHS TRUST,26669747,-60296.13,16774813
Department of Health,Southport and Ormskirk Hospital NHS Trust,31/05/2018,Income tax - Current,Balance Sheet,INLAND REVENUE CIS,26687482,38100.4,428PZ00140485
Department of Health,Southport and Ormskirk Hospital NHS Trust,31/05/2018,National Insurance - Curr,Balance Sheet,INLAND REVENUE CIS,26687482,46842.75,428PZ00140485
Department of Health,Southport and Ormskirk Hospital NHS Trust,31/05/2018,Statutory Mat Pay - Curr,Balance Sheet,INLAND REVENUE CIS,26687482,-534.28,428PZ00140485
Department of Health,Southport and Ormskirk Hospital NHS Trust,31/05/2018,Stocks Finished Goods,Balance Sheet,HEALTHCARE AT HOME LTD,26688020,30600,OP/7188457
Department of Health,Southport and Ormskirk Hospital NHS Trust,31/05/2018,Contr Premises Security,SECURITY SDGH,SAMSON SECURITY LTD,26695335,26352,12850
Department of Health,Southport and Ormskirk Hospital NHS Trust,31/05/2018,Income tax - Current,Balance Sheet,INLAND REVENUE CIS,26706487,1054356.18,428PD001291501901
Department of Health,Southport and Ormskirk Hospital NHS Trust,31/05/2018,National Insurance - Curr,Balance Sheet,INLAND REVENUE CIS,26706487,1209269.71,428PD001291501901
Department of Health,Southport and Ormskirk Hospital NHS Trust,31/05/2018,Statutory Mat Pay - Curr,Balance Sheet,INLAND REVENUE CIS,26706487,-24977.85,428PD001291501901
Department of Health,Southport and Ormskirk Hospital NHS Trust,31/07/2018,External Consultancy Fees,Service Improvement,ERNST & YOUNG LLP,26715053,119760,GB10300031565
Department of Health,Southport and Ormskirk Hospital NHS Trust,31/05/2018,Med Equip Additions,Balance Sheet,STRYKER UK LTD,26748471,27720,28317745
Department of Health,Southport and Ormskirk Hospital NHS Trust,31/05/2018,Services Received - NHSTs,Human Resources,ST HELENS & KNOWSLEY HOSPITALS NHS TRUST,26773190,175000,16774912
Department of Health,Southport and Ormskirk Hospital NHS Trust,31/05/2018,Other Liabilities - Curr,Balance Sheet,REVITALISE RESPITE HOLIDAYS,26807851,-37400,550429C
Department of Health,Southport and Ormskirk Hospital NHS Trust,31/05/2018,Energy Management Contr,Utilities SDGH,VEOLIA ENERGY & UTILITY SERVICES UK PLC,26822325,-35290.33,90144871
Department of Health,Southport and Ormskirk Hospital NHS Trust,31/05/2018,Energy Management Contr,Utilities ODGH,VEOLIA ENERGY & UTILITY SERVICES UK PLC,26822330,132000,90147945
Department of Health,Southport and Ormskirk Hospital NHS Trust,31/05/2018,Energy Management Contr,Utilities ODGH,VEOLIA ENERGY & UTILITY SERVICES UK PLC,26822332,132000,90144629
Department of Health,Southport and Ormskirk Hospital NHS Trust,31/05/2018,Energy Management Contr,Utilities ODGH,VEOLIA ENERGY & UTILITY SERVICES UK PLC,26823717,132000,90137935
Department of Health,Southport and Ormskirk Hospital NHS Trust,31/05/2018,Energy Management Contr,Utilities ODGH,VEOLIA ENERGY & UTILITY SERVICES UK PLC,26823722,80550.04,90137939
Department of Health,Southport and Ormskirk Hospital NHS Trust,31/05/2018,Energy Management Contr,Utilities ODGH,VEOLIA ENERGY & UTILITY SERVICES UK PLC,26823725,68469.36,90137700
Department of Health,Southport and Ormskirk Hospital NHS Trust,31/05/2018,Energy Management Contr,Utilities ODGH,VEOLIA ENERGY & UTILITY SERVICES UK PLC,26823825,76883.76,90147938
Department of Health,Southport and Ormskirk Hospital NHS Trust,31/05/2018,Energy Management Contr,Utilities ODGH,VEOLIA ENERGY & UTILITY SERVICES UK PLC,26823828,83185.18,90147947
Department of Health,Southport and Ormskirk Hospital NHS Trust,31/05/2018,Char Fund Contra Acc Curr,Balance Sheet,GAMA HEALTHCARE LTD,26824941,36000,160004823
Department of Health,Southport and Ormskirk Hospital NHS Trust,31/05/2018,NonNHS Trade Pybls Curr,Balance Sheet,L ROWLAND & CO LTD,26832113,159664,1800000305
Department of Health,Southport and Ormskirk Hospital NHS Trust,31/05/2018,Other Clinical Costs,Pharmacy,L ROWLAND & CO LTD,26832113,34186,1800000305
Department of Health,Southport and Ormskirk Hospital NHS Trust,31/05/2018,Other Operatg Rev Non NHS,Car Park SDGH,L ROWLAND & CO LTD,26832113,236.41,1800000305
Department of Health,Southport and Ormskirk Hospital NHS Trust,31/05/2018,Other Operatg Rev Non NHS,Pharmacy,L ROWLAND & CO LTD,26832113,-266.5,1800000305
Department of Health,Southport and Ormskirk Hospital NHS Trust,31/05/2018,Prescription Charges Rev,Pharmacy,L ROWLAND & CO LTD,26832113,-2313.4,1800000305
Department of Health,Southport and Ormskirk Hospital NHS Trust,31/05/2018,Other Liabilities - Curr,Balance Sheet,REVITALISE RESPITE HOLIDAYS,26832116,37400,550429
Department of Health,Southport and Ormskirk Hospital NHS Trust,31/05/2018,Other NHS Payables <1Yr,Balance Sheet,NHS PROFESSIONALS LTD,26832153,32999.57,I000010591P
Department of Health,Southport and Ormskirk Hospital NHS Trust,31/05/2018,Other NHS Payables <1Yr,Balance Sheet,NHS PROFESSIONALS LTD,26832169,112153.05,I000010647P
Department of Health,Southport and Ormskirk Hospital NHS Trust,31/05/2018,Other NHS Payables <1Yr,Balance Sheet,NHS PROFESSIONALS LTD,26832211,44392.72,I000010733P
Department of Health,Southport and Ormskirk Hospital NHS Trust,31/05/2018,NonNHS Trade Pybls Curr,Balance Sheet,NHS SUPPLY CHAIN,26832214,52629.15,1019026416
Department of Health,Southport and Ormskirk Hospital NHS Trust,31/05/2018,Other NHS Payables <1Yr,Balance Sheet,NHS PROFESSIONALS LTD,26832250,105429.33,I000010810P
Department of Health,Southport and Ormskirk Hospital NHS Trust,31/05/2018,Commercial Sector,SIU Intermediate Care Team,REVITALISE RESPITE HOLIDAYS,26832253,37400,550429B
Department of Health,Southport and Ormskirk Hospital NHS Trust,31/05/2018,NHS Prepayments,Balance Sheet,NHS BLOOD & TRANSPLANT,26832291,48073.43,870789
Department of Health,Southport and Ormskirk Hospital NHS Trust,31/05/2018,Commercial Sector,SIU Intermediate Care Team,REVITALISE RESPITE HOLIDAYS,26832301,37400,550431
Department of Health,Southport and Ormskirk Hospital NHS Trust,31/05/2018,Other NHS Payables <1Yr,Balance Sheet,NHS PROFESSIONALS LTD,26832307,50257.59,I000010889P
Department of Health,Southport and Ormskirk Hospital NHS Trust,31/05/2018,Contractual Clinical Srv,Pathology General,ST HELENS & KNOWSLEY HOSPITALS NHS TRUST,26832312,630134,16775177
Department of Health,Southport and Ormskirk Hospital NHS Trust,31/05/2018,NonNHS Trade Pybls Curr,Balance Sheet,NHS SUPPLY CHAIN,26832327,68465.74,1019032712
Department of Health,Southport and Ormskirk Hospital NHS Trust,30/06/2018,Computer Software/License,E-Rostering Team,ALLOCATE SOFTWARE PLC,26909074,93439.21,INAL13954
Department of Health,Southport and Ormskirk Hospital NHS Trust,30/06/2018,Gas,Utilities SDGH,GAZPROM MARKETING & TRADING RETAIL LTD,26928967,-63883.15,6204304
Department of Health,Southport and Ormskirk Hospital NHS Trust,30/06/2018,NHS Prepayments,Balance Sheet,ST HELENS & KNOWSLEY HOSPITALS NHS TRUST,26937228,-28957.76,16773392
Department of Health,Southport and Ormskirk Hospital NHS Trust,30/06/2018,NonNHS Trade Pybls Curr,Balance Sheet,L ROWLAND & CO LTD,26937329,144108.63,1800000445
Department of Health,Southport and Ormskirk Hospital NHS Trust,30/06/2018,Other Clinical Costs,Pharmacy,L ROWLAND & CO LTD,26937329,34186,1800000445
Department of Health,Southport and Ormskirk Hospital NHS Trust,30/06/2018,Other Operatg Rev Non NHS,Car Park SDGH,L ROWLAND & CO LTD,26937329,260.54,1800000445
Department of Health,Southport and Ormskirk Hospital NHS Trust,30/06/2018,Other Operatg Rev Non NHS,Pharmacy,L ROWLAND & CO LTD,26937329,-225,1800000445
Department of Health,Southport and Ormskirk Hospital NHS Trust,30/06/2018,Prescription Charges Rev,Pharmacy,L ROWLAND & CO LTD,26937329,-5625.8,1800000445
Department of Health,Southport and Ormskirk Hospital NHS Trust,30/06/2018,Commercial Sector,Radiology Medical Staff,4 WAYS HEALTHCARE LTD,26937358,29381.85,4WHC01198954
Department of Health,Southport and Ormskirk Hospital NHS Trust,30/06/2018,Gas,Utilities SDGH,GAZPROM MARKETING & TRADING RETAIL LTD,26937364,63883.15,6140972
Department of Health,Southport and Ormskirk Hospital NHS Trust,30/06/2018,Other NHS Payables <1Yr,Balance Sheet,NHS PROFESSIONALS LTD,26937384,126109.14,I000010943P
Department of Health,Southport and Ormskirk Hospital NHS Trust,30/06/2018,NHS Prepayments,Balance Sheet,ST HELENS & KNOWSLEY HOSPITALS NHS TRUST,26937391,360000,16775270
Department of Health,Southport and Ormskirk Hospital NHS Trust,30/06/2018,Other NHS Payables <1Yr,Balance Sheet,NHS PROFESSIONALS LTD,26937397,48778.04,I000011031P
Department of Health,Southport and Ormskirk Hospital NHS Trust,30/06/2018,NonNHS Trade Pybls Curr,Balance Sheet,NHS SUPPLY CHAIN,26937405,69271.25,1019036139
Department of Health,Southport and Ormskirk Hospital NHS Trust,30/06/2018,Other NHS Payables <1Yr,Balance Sheet,NHS PROFESSIONALS LTD,26937412,119166.72,I000011090P
Department of Health,Southport and Ormskirk Hospital NHS Trust,30/06/2018,Other NHS Payables <1Yr,Balance Sheet,NHS PROFESSIONALS LTD,26937444,42968.48,I000011167P
Department of Health,Southport and Ormskirk Hospital NHS Trust,30/06/2018,NHS Prepayments,Balance Sheet,ST HELENS & KNOWSLEY HOSPITALS NHS TRUST,26937451,-51387.53,16775490
Department of Health,Southport and Ormskirk Hospital NHS Trust,30/06/2018,Services Received - NHSTs,Human Resources,ST HELENS & KNOWSLEY HOSPITALS NHS TRUST,26937471,175000,16775634
Department of Health,Southport and Ormskirk Hospital NHS Trust,30/06/2018,NonNHS Trade Pybls Curr,Balance Sheet,NHS SUPPLY CHAIN,26937487,53965.07,1019040921
Department of Health,Southport and Ormskirk Hospital NHS Trust,30/06/2018,Energy Management Contr,Utilities ODGH,VEOLIA ENERGY & UTILITY SERVICES UK PLC,26937492,132000,90141795
Department of Health,Southport and Ormskirk Hospital NHS Trust,30/06/2018,Energy Management Contr,Utilities ODGH,VEOLIA ENERGY & UTILITY SERVICES UK PLC,26937499,90548.59,90141797
Department of Health,Southport and Ormskirk Hospital NHS Trust,30/06/2018,Energy Management Contr,Utilities SDGH,VEOLIA ENERGY & UTILITY SERVICES UK PLC,26937506,141057.73,90148018
Department of Health,Southport and Ormskirk Hospital NHS Trust,30/06/2018,Computer Maintenance,EPR and Systems,SPECIALIST COMPUTER CENTRES PLC,26967311,90708,OPM443114
Department of Health,Southport and Ormskirk Hospital NHS Trust,30/06/2018,Med Equip Additions,Balance Sheet,LINET UK LTD,27012894,51000,INV201810436
Department of Health,Southport and Ormskirk Hospital NHS Trust,30/06/2018,Char Fund Contra Acc Curr,Balance Sheet,GAMA HEALTHCARE LTD,27036350,26400,160005561
Department of Health,Southport and Ormskirk Hospital NHS Trust,30/06/2018,Income tax - Current,Balance Sheet,INLAND REVENUE CIS,27044651,1048507.51,428PD001291500219
Department of Health,Southport and Ormskirk Hospital NHS Trust,30/06/2018,National Insurance - Curr,Balance Sheet,INLAND REVENUE CIS,27044651,1210488.37,428PD001291500219
Department of Health,Southport and Ormskirk Hospital NHS Trust,30/06/2018,Statutory Mat Pay - Curr,Balance Sheet,INLAND REVENUE CIS,27044651,-19994.89,428PD001291500219
Department of Health,Southport and Ormskirk Hospital NHS Trust,30/06/2018,Income tax - Current,Balance Sheet,INLAND REVENUE CIS,27064652,35003,428PZ001404850219
Department of Health,Southport and Ormskirk Hospital NHS Trust,30/06/2018,National Insurance - Curr,Balance Sheet,INLAND REVENUE CIS,27064652,44905.72,428PZ001404850219
Department of Health,Southport and Ormskirk Hospital NHS Trust,30/06/2018,NonNHS Trade Pybls Curr,Balance Sheet,NHS SUPPLY CHAIN,27065367,58927.25,1019045372
Department of Health,Southport and Ormskirk Hospital NHS Trust,30/06/2018,Other NHS Payables <1Yr,Balance Sheet,NHS PROFESSIONALS LTD,27065379,115130.98,I000011361P
Department of Health,Southport and Ormskirk Hospital NHS Trust,30/06/2018,NHS Prepayments,Balance Sheet,NHS BLOOD & TRANSPLANT,27065459,48073.43,871785
Department of Health,Southport and Ormskirk Hospital NHS Trust,30/06/2018,Contr Premises Security,SECURITY SDGH,SAMSON SECURITY LTD,27078960,28548,12919
Department of Health,Southport and Ormskirk Hospital NHS Trust,30/06/2018,Computer Software/License,Management Accounting,SOFTCAT PLC,27082163,48000,INV01922658
Department of Health,Southport and Ormskirk Hospital NHS Trust,30/06/2018,Gas,Utilities SDGH,GAZPROM MARKETING & TRADING RETAIL LTD,27096104,87015.52,6043664
Department of Health,Southport and Ormskirk Hospital NHS Trust,30/06/2018,Computer Maintenance,Telecoms,UNIFY ENTERPRISE COMMUNICATIONS LTD,27096106,52731.94,6000892384
Department of Health,Southport and Ormskirk Hospital NHS Trust,30/06/2018,Gas,Utilities SDGH,GAZPROM MARKETING & TRADING RETAIL LTD,27096109,52709.38,6205087
Department of Health,Southport and Ormskirk Hospital NHS Trust,30/06/2018,Other NHS Payables <1Yr,Balance Sheet,NHS PROFESSIONALS LTD,27096111,117990.64,I000011221P
Department of Health,Southport and Ormskirk Hospital NHS Trust,30/06/2018,Other NHS Payables <1Yr,Balance Sheet,NHS PROFESSIONALS LTD,27096118,45439.48,I000011304P
Department of Health,Southport and Ormskirk Hospital NHS Trust,30/06/2018,Gas,Utilities SDGH,GAZPROM MARKETING & TRADING RETAIL LTD,27096121,-52709.38,6225613
Department of Health,Southport and Ormskirk Hospital NHS Trust,30/06/2018,Gas,Utilities SDGH,GAZPROM MARKETING & TRADING RETAIL LTD,27096124,-87015.52,6225614
Department of Health,Southport and Ormskirk Hospital NHS Trust,30/06/2018,Gas,Utilities SDGH,GAZPROM MARKETING & TRADING RETAIL LTD,27096128,68875.49,6225615
Department of Health,Southport and Ormskirk Hospital NHS Trust,30/06/2018,Gas,Utilities SDGH,GAZPROM MARKETING & TRADING RETAIL LTD,27096131,68906.69,6225616
Department of Health,Southport and Ormskirk Hospital NHS Trust,30/06/2018,Audit Fees: Internal,Contracted Out Services,ROYAL LIVERPOOL&BROADGREEN UNIVERSITY HOSPITALS NHS TRUST (THE),27096136,29770.75,8610083488
Department of Health,Southport and Ormskirk Hospital NHS Trust,31/07/2018,NonRes Bldg Additions,Balance Sheet,SPACEBUILDER LTD,27115533,77309.75,50865
Department of Health,Southport and Ormskirk Hospital NHS Trust,30/06/2018,Med & Surg Maint Contract,EBME SDGH,PHILIPS HEALTHCARE,27127416,21375.11,936545903
Department of Health,Southport and Ormskirk Hospital NHS Trust,30/06/2018,Stocks Finished Goods,Balance Sheet,HEALTHCARE AT HOME LTD,27141566,42256.8,OP/7266895
Department of Health,Southport and Ormskirk Hospital NHS Trust,30/06/2018,Stocks Finished Goods,Balance Sheet,HEALTHCARE AT HOME LTD,27141584,32640,OP/7266962
Department of Health,Southport and Ormskirk Hospital NHS Trust,30/06/2018,Stocks Finished Goods,Balance Sheet,HEALTHCARE AT HOME LTD,27141615,27466.92,OP/7267094
Department of Health,Southport and Ormskirk Hospital NHS Trust,30/06/2018,Med Equip Additions,Balance Sheet,HAEMONETICS LTD,27153682,4290,23647
Department of Health,Southport and Ormskirk Hospital NHS Trust,31/07/2018,Med Equip Additions,Balance Sheet,HAEMONETICS LTD,27153682,21450,23647
Department of Health,Southport and Ormskirk Hospital NHS Trust,30/06/2018,NonNHS Trade Pybls Curr,Balance Sheet,NHS SUPPLY CHAIN,27161613,62772.92,1019053697
Department of Health,Southport and Ormskirk Hospital NHS Trust,30/06/2018,NonNHS Trade Pybls Curr,Balance Sheet,NHS SUPPLY CHAIN,27161732,62349.67,1019056573
Department of Health,Southport and Ormskirk Hospital NHS Trust,30/06/2018,IT Additions,Balance Sheet,KAINOS EVOLVE LTD,27197649,16158.98,INV014438
Department of Health,Southport and Ormskirk Hospital NHS Trust,31/07/2018,Computer Maintenance,IT,KAINOS EVOLVE LTD,27197649,96953.9,INV014438
Department of Health,Southport and Ormskirk Hospital NHS Trust,31/07/2018,IT Additions,Balance Sheet,KAINOS EVOLVE LTD,27197649,-16158.98,INV014438
Department of Health,Southport and Ormskirk Hospital NHS Trust,31/07/2018,Gas,Utilities SDGH,GAZPROM MARKETING & TRADING RETAIL LTD,27215370,48417.65,6225769
Department of Health,Southport and Ormskirk Hospital NHS Trust,31/07/2018,Gas,Utilities SDGH,GAZPROM MARKETING & TRADING RETAIL LTD,27215398,41392.99,6268256
Department of Health,Southport and Ormskirk Hospital NHS Trust,31/07/2018,Gas,Utilities SDGH,GAZPROM MARKETING & TRADING RETAIL LTD,27215406,-48417.65,6268254
Department of Health,Southport and Ormskirk Hospital NHS Trust,31/07/2018,Gas,Utilities SDGH,GAZPROM MARKETING & TRADING RETAIL LTD,27215414,-68875.49,6294614
Department of Health,Southport and Ormskirk Hospital NHS Trust,31/07/2018,Gas,Utilities SDGH,GAZPROM MARKETING & TRADING RETAIL LTD,27215423,-72150.34,6294616
Department of Health,Southport and Ormskirk Hospital NHS Trust,31/07/2018,Gas,Utilities SDGH,GAZPROM MARKETING & TRADING RETAIL LTD,27215430,-68906.69,6294615
Department of Health,Southport and Ormskirk Hospital NHS Trust,31/07/2018,Gas,Utilities SDGH,GAZPROM MARKETING & TRADING RETAIL LTD,27215436,-78154.37,6294617
Department of Health,Southport and Ormskirk Hospital NHS Trust,31/07/2018,Gas,Utilities SDGH,GAZPROM MARKETING & TRADING RETAIL LTD,27215446,-74062.99,6294618
Department of Health,Southport and Ormskirk Hospital NHS Trust,31/07/2018,Gas,Utilities SDGH,GAZPROM MARKETING & TRADING RETAIL LTD,27215455,-51493.11,6294620
Department of Health,Southport and Ormskirk Hospital NHS Trust,31/07/2018,Gas,Utilities SDGH,GAZPROM MARKETING & TRADING RETAIL LTD,27215465,-62163.53,6294622
Department of Health,Southport and Ormskirk Hospital NHS Trust,31/07/2018,Gas,Utilities SDGH,GAZPROM MARKETING & TRADING RETAIL LTD,27215475,-71397.75,6294619
Department of Health,Southport and Ormskirk Hospital NHS Trust,31/07/2018,Gas,Utilities SDGH,GAZPROM MARKETING & TRADING RETAIL LTD,27215492,-30700.57,6294642
Department of Health,Southport and Ormskirk Hospital NHS Trust,31/07/2018,Gas,Utilities SDGH,GAZPROM MARKETING & TRADING RETAIL LTD,27215501,-36854.04,6294638
Department of Health,Southport and Ormskirk Hospital NHS Trust,31/07/2018,Gas,Utilities SDGH,GAZPROM MARKETING & TRADING RETAIL LTD,27215512,-41392.99,6294613
Department of Health,Southport and Ormskirk Hospital NHS Trust,31/07/2018,Gas,Utilities SDGH,GAZPROM MARKETING & TRADING RETAIL LTD,27215539,37659.28,6294683
Department of Health,Southport and Ormskirk Hospital NHS Trust,31/07/2018,Gas,Utilities SDGH,GAZPROM MARKETING & TRADING RETAIL LTD,27215549,48597.12,6294685
Department of Health,Southport and Ormskirk Hospital NHS Trust,31/07/2018,Gas,Utilities SDGH,GAZPROM MARKETING & TRADING RETAIL LTD,27215558,43226.57,6294684
Department of Health,Southport and Ormskirk Hospital NHS Trust,31/07/2018,Gas,Utilities SDGH,GAZPROM MARKETING & TRADING RETAIL LTD,27215567,-47641.62,6294641
Department of Health,Southport and Ormskirk Hospital NHS Trust,31/07/2018,Gas,Utilities SDGH,GAZPROM MARKETING & TRADING RETAIL LTD,27215576,-53642.99,6294643
Department of Health,Southport and Ormskirk Hospital NHS Trust,31/07/2018,Gas,Utilities SDGH,GAZPROM MARKETING & TRADING RETAIL LTD,27215585,-59545.14,6294639
Department of Health,Southport and Ormskirk Hospital NHS Trust,31/07/2018,Gas,Utilities SDGH,GAZPROM MARKETING & TRADING RETAIL LTD,27215599,33731.08,6294696
Department of Health,Southport and Ormskirk Hospital NHS Trust,31/07/2018,Gas,Utilities SDGH,GAZPROM MARKETING & TRADING RETAIL LTD,27215608,65214.8,6294701
Department of Health,Southport and Ormskirk Hospital NHS Trust,31/07/2018,Gas,Utilities SDGH,GAZPROM MARKETING & TRADING RETAIL LTD,27215617,71563.85,6294704
Department of Health,Southport and Ormskirk Hospital NHS Trust,31/07/2018,Gas,Utilities SDGH,GAZPROM MARKETING & TRADING RETAIL LTD,27215624,66012.1,6294705
Department of Health,Southport and Ormskirk Hospital NHS Trust,31/07/2018,Gas,Utilities SDGH,GAZPROM MARKETING & TRADING RETAIL LTD,27215633,-71759.86,6294645
Department of Health,Southport and Ormskirk Hospital NHS Trust,31/07/2018,Gas,Utilities SDGH,GAZPROM MARKETING & TRADING RETAIL LTD,27215641,-63206.55,6294647
Department of Health,Southport and Ormskirk Hospital NHS Trust,31/07/2018,Gas,Utilities SDGH,GAZPROM MARKETING & TRADING RETAIL LTD,27215648,52046.21,6294693
Department of Health,Southport and Ormskirk Hospital NHS Trust,31/07/2018,Gas,Utilities SDGH,GAZPROM MARKETING & TRADING RETAIL LTD,27218656,57373.18,6294692
Department of Health,Southport and Ormskirk Hospital NHS Trust,31/07/2018,Gas,Utilities SDGH,GAZPROM MARKETING & TRADING RETAIL LTD,27218664,46782.85,6294698
Department of Health,Southport and Ormskirk Hospital NHS Trust,31/07/2018,Gas,Utilities SDGH,GAZPROM MARKETING & TRADING RETAIL LTD,27218671,56528.49,6294700
Department of Health,Southport and Ormskirk Hospital NHS Trust,31/07/2018,Gas,Utilities SDGH,GAZPROM MARKETING & TRADING RETAIL LTD,27218680,67811.28,6294702
Department of Health,Southport and Ormskirk Hospital NHS Trust,31/07/2018,Gas,Utilities SDGH,GAZPROM MARKETING & TRADING RETAIL LTD,27218688,62294.26,6294707
Department of Health,Southport and Ormskirk Hospital NHS Trust,31/07/2018,Gas,Utilities SDGH,GAZPROM MARKETING & TRADING RETAIL LTD,27218697,-67037.61,6294648
Department of Health,Southport and Ormskirk Hospital NHS Trust,31/07/2018,Gas,Utilities SDGH,GAZPROM MARKETING & TRADING RETAIL LTD,27218705,-42816.3,6294650
Department of Health,Southport and Ormskirk Hospital NHS Trust,31/07/2018,Gas,Utilities SDGH,GAZPROM MARKETING & TRADING RETAIL LTD,27218714,37009.69,6294694
Department of Health,Southport and Ormskirk Hospital NHS Trust,31/07/2018,Gas,Utilities SDGH,GAZPROM MARKETING & TRADING RETAIL LTD,27218722,63073.3,6294706
Department of Health,Southport and Ormskirk Hospital NHS Trust,31/07/2018,Gas,Utilities SDGH,GAZPROM MARKETING & TRADING RETAIL LTD,27218728,37652.77,6294708
Department of Health,Southport and Ormskirk Hospital NHS Trust,31/07/2018,Gas,Utilities SDGH,GAZPROM MARKETING & TRADING RETAIL LTD,27218744,-66312.34,6294649
Department of Health,Southport and Ormskirk Hospital NHS Trust,31/07/2018,Gas,Utilities SDGH,GAZPROM MARKETING & TRADING RETAIL LTD,27218753,-51792.65,6294654
Department of Health,Southport and Ormskirk Hospital NHS Trust,31/07/2018,Gas,Utilities SDGH,GAZPROM MARKETING & TRADING RETAIL LTD,27218761,-45536.6,6294653
Department of Health,Southport and Ormskirk Hospital NHS Trust,31/07/2018,Gas,Utilities SDGH,GAZPROM MARKETING & TRADING RETAIL LTD,27218779,43775.88,6294661
Department of Health,Southport and Ormskirk Hospital NHS Trust,31/07/2018,Gas,Utilities SDGH,GAZPROM MARKETING & TRADING RETAIL LTD,27218786,60192.01,6294665
Department of Health,Southport and Ormskirk Hospital NHS Trust,31/07/2018,Gas,Utilities SDGH,GAZPROM MARKETING & TRADING RETAIL LTD,27218795,53907.21,6294662
Department of Health,Southport and Ormskirk Hospital NHS Trust,31/07/2018,Gas,Utilities SDGH,GAZPROM MARKETING & TRADING RETAIL LTD,27218803,48945.07,6294674
Department of Health,Southport and Ormskirk Hospital NHS Trust,31/07/2018,Gas,Utilities SDGH,GAZPROM MARKETING & TRADING RETAIL LTD,27218809,61580.45,6294671
Department of Health,Southport and Ormskirk Hospital NHS Trust,31/07/2018,Gas,Utilities SDGH,GAZPROM MARKETING & TRADING RETAIL LTD,27218820,28073.1,6294681
Department of Health,Southport and Ormskirk Hospital NHS Trust,31/07/2018,Gas,Utilities SDGH,GAZPROM MARKETING & TRADING RETAIL LTD,27218827,-55471.23,6294652
Department of Health,Southport and Ormskirk Hospital NHS Trust,31/07/2018,Gas,Utilities SDGH,GAZPROM MARKETING & TRADING RETAIL LTD,27218838,-53220.6,6294651
Department of Health,Southport and Ormskirk Hospital NHS Trust,31/07/2018,Gas,Utilities SDGH,GAZPROM MARKETING & TRADING RETAIL LTD,27218846,-27227.2,6294656
Department of Health,Southport and Ormskirk Hospital NHS Trust,31/07/2018,Gas,Utilities SDGH,GAZPROM MARKETING & TRADING RETAIL LTD,27218853,-48384.53,6294655
Department of Health,Southport and Ormskirk Hospital NHS Trust,31/07/2018,Gas,Utilities SDGH,GAZPROM MARKETING & TRADING RETAIL LTD,27218861,-56369.33,6294657
Department of Health,Southport and Ormskirk Hospital NHS Trust,31/07/2018,Gas,Utilities SDGH,GAZPROM MARKETING & TRADING RETAIL LTD,27218866,51176.29,6294659
Department of Health,Southport and Ormskirk Hospital NHS Trust,31/07/2018,Gas,Utilities SDGH,GAZPROM MARKETING & TRADING RETAIL LTD,27218872,57753.96,6294670
Department of Health,Southport and Ormskirk Hospital NHS Trust,31/07/2018,Gas,Utilities SDGH,GAZPROM MARKETING & TRADING RETAIL LTD,27218880,37912.01,6294664
Department of Health,Southport and Ormskirk Hospital NHS Trust,31/07/2018,Gas,Utilities SDGH,GAZPROM MARKETING & TRADING RETAIL LTD,27218887,51038.37,6294675
Department of Health,Southport and Ormskirk Hospital NHS Trust,31/07/2018,Gas,Utilities SDGH,GAZPROM MARKETING & TRADING RETAIL LTD,27218895,39958.91,6294672
Department of Health,Southport and Ormskirk Hospital NHS Trust,31/07/2018,Gas,Utilities SDGH,GAZPROM MARKETING & TRADING RETAIL LTD,27218903,65016.08,6294679
Department of Health,Southport and Ormskirk Hospital NHS Trust,31/07/2018,Gas,Utilities SDGH,GAZPROM MARKETING & TRADING RETAIL LTD,27218918,-35232.56,6294632
Department of Health,Southport and Ormskirk Hospital NHS Trust,31/07/2018,Gas,Utilities SDGH,GAZPROM MARKETING & TRADING RETAIL LTD,27218942,-75135.23,6294634
Department of Health,Southport and Ormskirk Hospital NHS Trust,31/07/2018,Gas,Utilities SDGH,GAZPROM MARKETING & TRADING RETAIL LTD,27218947,-36969.45,6294623
Department of Health,Southport and Ormskirk Hospital NHS Trust,31/07/2018,Gas,Utilities SDGH,GAZPROM MARKETING & TRADING RETAIL LTD,27218959,60625.67,6294686
Department of Health,Southport and Ormskirk Hospital NHS Trust,31/07/2018,Gas,Utilities SDGH,GAZPROM MARKETING & TRADING RETAIL LTD,27218966,67179.52,6294687
Department of Health,Southport and Ormskirk Hospital NHS Trust,31/07/2018,Gas,Utilities SDGH,GAZPROM MARKETING & TRADING RETAIL LTD,27218970,51654.19,6294690
Department of Health,Southport and Ormskirk Hospital NHS Trust,31/07/2018,Gas,Utilities SDGH,GAZPROM MARKETING & TRADING RETAIL LTD,27218978,34425.67,6294689
Department of Health,Southport and Ormskirk Hospital NHS Trust,31/07/2018,Gas,Utilities SDGH,GAZPROM MARKETING & TRADING RETAIL LTD,27218986,79466.37,6294688
Department of Health,Southport and Ormskirk Hospital NHS Trust,31/07/2018,Gas,Utilities SDGH,GAZPROM MARKETING & TRADING RETAIL LTD,27219001,-63356,6294627
Department of Health,Southport and Ormskirk Hospital NHS Trust,31/07/2018,Gas,Utilities SDGH,GAZPROM MARKETING & TRADING RETAIL LTD,27219016,-58209.96,6294631
Department of Health,Southport and Ormskirk Hospital NHS Trust,31/07/2018,Gas,Utilities SDGH,GAZPROM MARKETING & TRADING RETAIL LTD,27219018,-92446.62,6294633
Department of Health,Southport and Ormskirk Hospital NHS Trust,31/07/2018,Gas,Utilities SDGH,GAZPROM MARKETING & TRADING RETAIL LTD,27219026,-57520.89,6294624
Department of Health,Southport and Ormskirk Hospital NHS Trust,31/07/2018,Gas,Utilities SDGH,GAZPROM MARKETING & TRADING RETAIL LTD,27219033,-40742.31,6294625
Department of Health,Southport and Ormskirk Hospital NHS Trust,31/07/2018,Other NHS Payables <1Yr,Balance Sheet,NHS PROFESSIONALS LTD,27235597,34073.53,I000011684P
Department of Health,Southport and Ormskirk Hospital NHS Trust,31/07/2018,Computer Maintenance,IT,SPECIALIST COMPUTER CENTRES PLC,27240663,36723.6,OPM461173
Department of Health,Southport and Ormskirk Hospital NHS Trust,31/07/2018,Other NHS Payables <1Yr,Balance Sheet,NHS PROFESSIONALS LTD,27273042,39093.78,I000011443P
Department of Health,Southport and Ormskirk Hospital NHS Trust,31/07/2018,Other NHS Payables <1Yr,Balance Sheet,NHS PROFESSIONALS LTD,27273048,116984.89,I000011499P
Department of Health,Southport and Ormskirk Hospital NHS Trust,31/07/2018,Other NHS Payables <1Yr,Balance Sheet,NHS PROFESSIONALS LTD,27273059,40584.47,I000011573P
Department of Health,Southport and Ormskirk Hospital NHS Trust,31/07/2018,Other NHS Payables <1Yr,Balance Sheet,NHS PROFESSIONALS LTD,27273068,113713.86,I000011629P
Department of Health,Southport and Ormskirk Hospital NHS Trust,31/07/2018,Contractual Clinical Srv,Pathology General,ST HELENS & KNOWSLEY HOSPITALS NHS TRUST,27273074,630134,16776001
Department of Health,Southport and Ormskirk Hospital NHS Trust,31/07/2018,Other NHS Payables <1Yr,Balance Sheet,NHS PROFESSIONALS LTD,27273082,117625.66,I000011763P
Department of Health,Southport and Ormskirk Hospital NHS Trust,31/07/2018,NHS Prepayments,Balance Sheet,ST HELENS & KNOWSLEY HOSPITALS NHS TRUST,27291764,360000,16775899
Department of Health,Southport and Ormskirk Hospital NHS Trust,31/07/2018,Services Received - NHSTs,Human Resources,ST HELENS & KNOWSLEY HOSPITALS NHS TRUST,27291772,175000,16776003
Department of Health,Southport and Ormskirk Hospital NHS Trust,31/07/2018,NHS Prepayments,Balance Sheet,ST HELENS & KNOWSLEY HOSPITALS NHS TRUST,27291778,-46678.53,16776251
Department of Health,Southport and Ormskirk Hospital NHS Trust,31/07/2018,External Consultancy Fees,Service Improvement,KPMG LLP,27299268,43389.96,5501692191
Department of Health,Southport and Ormskirk Hospital NHS Trust,31/07/2018,Med Equip Additions,Balance Sheet,MINDRAY (UK) LTD,27308135,37238.4,610045570
Department of Health,Southport and Ormskirk Hospital NHS Trust,31/07/2018,External Consultancy Fees,Service Improvement,ERNST & YOUNG LLP,27321767,103050,GB10300032551
Department of Health,Southport and Ormskirk Hospital NHS Trust,31/07/2018,External Consultancy Fees,Service Improvement,ERNST & YOUNG LLP,27321769,50940,GB10300032550
Department of Health,Southport and Ormskirk Hospital NHS Trust,31/07/2018,External Consultancy Fees,Service Improvement,ERNST & YOUNG LLP,27321770,28210,GB10300032552
Department of Health,Southport and Ormskirk Hospital NHS Trust,31/07/2018,Med Equip Additions,Balance Sheet,MINDRAY (UK) LTD,27321777,172769.4,610046561
Department of Health,Southport and Ormskirk Hospital NHS Trust,31/07/2018,Med Equip Additions,Balance Sheet,DE SOUTTER MEDICAL LTD,27336522,121310.9,465194
Department of Health,Southport and Ormskirk Hospital NHS Trust,31/07/2018,Med Equip Additions,Balance Sheet,HAEMONETICS LTD,27345708,-46800,23087CRCORR
Department of Health,Southport and Ormskirk Hospital NHS Trust,31/07/2018,Med Equip Additions,Balance Sheet,HAEMONETICS LTD,27345709,46800,23087DRCORR
Department of Health,Southport and Ormskirk Hospital NHS Trust,31/07/2018,Income tax - Current,Balance Sheet,INLAND REVENUE CIS,27346694,1040090.42,428PD001291501903
Department of Health,Southport and Ormskirk Hospital NHS Trust,31/07/2018,National Insurance - Curr,Balance Sheet,INLAND REVENUE CIS,27346694,1211934.85,428PD001291501903
Department of Health,Southport and Ormskirk Hospital NHS Trust,31/07/2018,Statutory Mat Pay - Curr,Balance Sheet,INLAND REVENUE CIS,27346694,-21417.42,428PD001291501903
Department of Health,Southport and Ormskirk Hospital NHS Trust,31/07/2018,Income tax - Current,Balance Sheet,INLAND REVENUE CIS,27346695,33697.4,428PZ001404851903
Department of Health,Southport and Ormskirk Hospital NHS Trust,31/07/2018,National Insurance - Curr,Balance Sheet,INLAND REVENUE CIS,27346695,44139.52,428PZ001404851903
Department of Health,Southport and Ormskirk Hospital NHS Trust,31/07/2018,Energy Management Contr,Utilities ODGH,VEOLIA ENERGY & UTILITY SERVICES UK PLC,27360358,132000,90147944
Department of Health,Southport and Ormskirk Hospital NHS Trust,31/07/2018,Other NHS Payables <1Yr,Balance Sheet,NHS PROFESSIONALS LTD,27360384,119909.89,I000011892P
Department of Health,Southport and Ormskirk Hospital NHS Trust,31/07/2018,Non NHS Prepayments,Balance Sheet,GE HEALTHCARE LTD,27363962,423819.98,1000008
Department of Health,Southport and Ormskirk Hospital NHS Trust,31/08/2018,Contr Photocopier Rental,Supplies,KONICA MINOLTA BUSINESS SOLUTIONS (UK) LTD,27401501,39138.47,1138617854
Department of Health,Southport and Ormskirk Hospital NHS Trust,31/07/2018,Stocks Finished Goods,Balance Sheet,HEALTHCARE AT HOME LTD,27416945,37740,OP/7341428
Department of Health,Southport and Ormskirk Hospital NHS Trust,31/07/2018,Stocks Finished Goods,Balance Sheet,HEALTHCARE AT HOME LTD,27416954,27466.92,OP/7341484
Department of Health,Southport and Ormskirk Hospital NHS Trust,31/07/2018,Other NHS Payables <1Yr,Balance Sheet,NHS PROFESSIONALS LTD,27423812,38771.12,I000011837P
Department of Health,Southport and Ormskirk Hospital NHS Trust,31/07/2018,NonNHS Trade Pybls Curr,Balance Sheet,NHS SUPPLY CHAIN,27423814,67567.38,1019067376
Department of Health,Southport and Ormskirk Hospital NHS Trust,31/07/2018,NonNHS Trade Pybls Curr,Balance Sheet,NHS SUPPLY CHAIN,27423816,59593.88,1019061537
Department of Health,Southport and Ormskirk Hospital NHS Trust,31/07/2018,NonNHS Trade Pybls Curr,Balance Sheet,NHS SUPPLY CHAIN,27423830,57624.86,1019070878
Department of Health,Southport and Ormskirk Hospital NHS Trust,31/07/2018,NHS Prepayments,Balance Sheet,NHS BLOOD & TRANSPLANT,27423833,48073.43,872524
Department of Health,Southport and Ormskirk Hospital NHS Trust,31/07/2018,Other NHS Payables <1Yr,Balance Sheet,NHS PROFESSIONALS LTD,27423836,40753.62,I000011969P
Department of Health,Southport and Ormskirk Hospital NHS Trust,31/07/2018,Other NHS Payables <1Yr,Balance Sheet,NHS PROFESSIONALS LTD,27423858,89885.97,I000012024P
Department of Health,Southport and Ormskirk Hospital NHS Trust,31/07/2018,Contractual Clinical Srv,Pathology General,ST HELENS & KNOWSLEY HOSPITALS NHS TRUST,27423864,630134,16776420
Department of Health,Southport and Ormskirk Hospital NHS Trust,31/07/2018,Other NHS Payables <1Yr,Balance Sheet,NHS PROFESSIONALS LTD,27423874,38123.11,I000012109P
Department of Health,Southport and Ormskirk Hospital NHS Trust,31/07/2018,Contr Premises Security,SECURITY SDGH,SAMSON SECURITY LTD,27425893,26352.01,13059
Department of Health,Southport and Ormskirk Hospital NHS Trust,31/07/2018,Other NHS Payables <1Yr,Balance Sheet,NHS PROFESSIONALS LTD,27464064,105066.87,I000012168P
Department of Health,Southport and Ormskirk Hospital NHS Trust,31/07/2018,IT Additions,Balance Sheet,KAINOS SOFTWARE LTD,27466754,29584.94,INV014437
Department of Health,Southport and Ormskirk Hospital NHS Trust,31/07/2018,Commercial Sector,Radiology Medical Staff,4 WAYS HEALTHCARE LTD,27478863,29427.2,4WHC02199149
Department of Health,Southport and Ormskirk Hospital NHS Trust,31/07/2018,Commercial Sector,SIU Intermediate Care Team,REVITALISE RESPITE HOLIDAYS,27478870,37400,550432
Department of Health,Southport and Ormskirk Hospital NHS Trust,31/08/2018,SrvcsRecd-FoundationTrust,Gen Med Medical staff,LIVERPOOL HEART & CHEST HOSPITAL NHS TRUST,27521402,26376.57,12773134
Department of Health,Southport and Ormskirk Hospital NHS Trust,31/08/2018,Other NHS Payables <1Yr,Balance Sheet,NHS PROFESSIONALS LTD,27521408,34594.1,I000012248P
Department of Health,Southport and Ormskirk Hospital NHS Trust,31/08/2018,NHS Prepayments,Balance Sheet,ST HELENS & KNOWSLEY HOSPITALS NHS TRUST,27521415,360000,16776697
Department of Health,Southport and Ormskirk Hospital NHS Trust,31/08/2018,Services Received - NHSTs,Human Resources,ST HELENS & KNOWSLEY HOSPITALS NHS TRUST,27521433,175000,16776962
Department of Health,Southport and Ormskirk Hospital NHS Trust,31/08/2018,Furniture & Fittings,Director Of Nursing,DOVEHAVEN NURSING HOME,27539403,63609,BBCNH0003
Department of Health,Southport and Ormskirk Hospital NHS Trust,31/08/2018,Computer Maintenance,Radiology,HEALTHCARE SOFTWARE SOLUTIONS LTD,27541282,25612.8,2241
Department of Health,Southport and Ormskirk Hospital NHS Trust,31/08/2018,NonRes Bldg Additions,Balance Sheet,EFT CONSTRUCTION LTD,27553941,45623.38,607
Department of Health,Southport and Ormskirk Hospital NHS Trust,31/08/2018,NonNHS Trade Pybls Curr,Balance Sheet,L ROWLAND & CO LTD,27587143,182747.74,1800000808
Department of Health,Southport and Ormskirk Hospital NHS Trust,31/08/2018,Other Clinical Costs,Pharmacy,L ROWLAND & CO LTD,27587143,34958.28,1800000808
Department of Health,Southport and Ormskirk Hospital NHS Trust,31/08/2018,Other Operatg Rev Non NHS,Car Park SDGH,L ROWLAND & CO LTD,27587143,168.88,1800000808
Department of Health,Southport and Ormskirk Hospital NHS Trust,31/08/2018,Other Operatg Rev Non NHS,Pharmacy,L ROWLAND & CO LTD,27587143,-261,1800000808
Department of Health,Southport and Ormskirk Hospital NHS Trust,31/08/2018,Prescription Charges Rev,Pharmacy,L ROWLAND & CO LTD,27587143,-3493.6,1800000808
Department of Health,Southport and Ormskirk Hospital NHS Trust,31/08/2018,NonNHS Trade Pybls Curr,Balance Sheet,NHS SUPPLY CHAIN,27587148,75514.59,1019078149
Department of Health,Southport and Ormskirk Hospital NHS Trust,31/08/2018,NonNHS Trade Pybls Curr,Balance Sheet,NHS SUPPLY CHAIN,27587154,67485.87,1019080498
Department of Health,Southport and Ormskirk Hospital NHS Trust,31/08/2018,NHS Prepayments,Balance Sheet,ST HELENS & KNOWSLEY HOSPITALS NHS TRUST,27587155,-62231.63,16777119
Department of Health,Southport and Ormskirk Hospital NHS Trust,31/08/2018,Other NHS Payables <1Yr,Balance Sheet,NHS PROFESSIONALS LTD,27587158,108771.17,I000012300P
Department of Health,Southport and Ormskirk Hospital NHS Trust,31/08/2018,Professional Fees,Trust Board,TRACEY SPARKES LTD,27609484,22000,SEMR02
Department of Health,Southport and Ormskirk Hospital NHS Trust,31/08/2018,Computer Maintenance,Access,KAINOS EVOLVE LTD,27609583,27155.7,INV014794
Department of Health,Southport and Ormskirk Hospital NHS Trust,31/08/2018,National QC & Accred Fees,Clinical Effectiveness,DR FOSTER LTD,27630021,70320,1010056
Department of Health,Southport and Ormskirk Hospital NHS Trust,31/08/2018,Income tax - Current,Balance Sheet,INLAND REVENUE CIS,27637671,1097029.89,428PD001291501904
Department of Health,Southport and Ormskirk Hospital NHS Trust,31/08/2018,National Insurance - Curr,Balance Sheet,INLAND REVENUE CIS,27637671,1250965.16,428PD001291501904
Department of Health,Southport and Ormskirk Hospital NHS Trust,31/08/2018,Shared Parental Leave,Balance Sheet,INLAND REVENUE CIS,27637671,-1736.41,428PD001291501904
Department of Health,Southport and Ormskirk Hospital NHS Trust,31/08/2018,Statutory Mat Pay - Curr,Balance Sheet,INLAND REVENUE CIS,27637671,-22200.7,428PD001291501904
Department of Health,Southport and Ormskirk Hospital NHS Trust,31/08/2018,Statutory Pat Pay - Curr,Balance Sheet,INLAND REVENUE CIS,27637671,-267.14,428PD001291501904
Department of Health,Southport and Ormskirk Hospital NHS Trust,31/08/2018,Consultant,Clin Haem Medical Staff,AINTREE UNIVERSITY HOSPITALS NHS FOUNDATION TRUST,27639576,47585.46,8410036054
Department of Health,Southport and Ormskirk Hospital NHS Trust,31/08/2018,Other Liabilities - Curr,Balance Sheet,MERSEY CARE NHS TRUST,27639591,64945,I0037799
Department of Health,Southport and Ormskirk Hospital NHS Trust,31/08/2018,NonRes Bldg Additions,Balance Sheet,EFT CONSTRUCTION LTD,27644868,81610.58,611
Department of Health,Southport and Ormskirk Hospital NHS Trust,31/08/2018,Other NHS Payables <1Yr,Balance Sheet,NHS PROFESSIONALS LTD,27646343,43534.01,I000012387P
Department of Health,Southport and Ormskirk Hospital NHS Trust,31/08/2018,NonNHS Trade Pybls Curr,Balance Sheet,NHS SUPPLY CHAIN,27646411,56083.54,1019087624
Department of Health,Southport and Ormskirk Hospital NHS Trust,31/08/2018,Other Liabilities - Curr,Balance Sheet,MERSEY CARE NHS TRUST,27646453,-64945,C0002444
Department of Health,Southport and Ormskirk Hospital NHS Trust,31/08/2018,Other NHS Payables <1Yr,Balance Sheet,NHS PROFESSIONALS LTD,27646482,122255.49,I000012435P
Department of Health,Southport and Ormskirk Hospital NHS Trust,31/08/2018,NonRes Bldg Additions,Balance Sheet,INGHAM & GARNER LTD,27660969,35372.9,8615
Department of Health,Southport and Ormskirk Hospital NHS Trust,31/08/2018,NonNHS Trade Pybls Curr,Balance Sheet,NHS SUPPLY CHAIN,27660975,65269.14,1019094149
Department of Health,Southport and Ormskirk Hospital NHS Trust,31/08/2018,Stocks Finished Goods,Balance Sheet,HEALTHCARE AT HOME LTD,27677433,29920,OP/7419372
Department of Health,Southport and Ormskirk Hospital NHS Trust,31/08/2018,Stocks Finished Goods,Balance Sheet,HEALTHCARE AT HOME LTD,27677437,35214,OP/7419461
Department of Health,Southport and Ormskirk Hospital NHS Trust,31/08/2018,Income tax - Current,Balance Sheet,INLAND REVENUE CIS,27681690,35694.8,428PZ001404851904
Department of Health,Southport and Ormskirk Hospital NHS Trust,31/08/2018,National Insurance - Curr,Balance Sheet,INLAND REVENUE CIS,27681690,47070.72,428PZ001404851904
Department of Health,Southport and Ormskirk Hospital NHS Trust,31/08/2018,Other NHS Payables <1Yr,Balance Sheet,NHS PROFESSIONALS LTD,27717202,38709.71,I000012512P
Department of Health,Southport and Ormskirk Hospital NHS Trust,31/08/2018,NHS Prepayments,Balance Sheet,NHS BLOOD & TRANSPLANT,27717217,48073.43,873263
Department of Health,Southport and Ormskirk Hospital NHS Trust,31/08/2018,Other NHS Payables <1Yr,Balance Sheet,NHS PROFESSIONALS LTD,27717535,128874.71,I000012568P
Department of Health,Southport and Ormskirk Hospital NHS Trust,31/08/2018,Computer Maintenance,IT,INSIGHT DIRECT (UK) LTD,27725798,110638.8,4008950
Department of Health,Southport and Ormskirk Hospital NHS Trust,31/08/2018,IT Additions,Balance Sheet,INSIGHT DIRECT (UK) LTD,27725798,173874,4008950
Department of Health,Southport and Ormskirk Hospital NHS Trust,31/08/2018,External Consultancy Fees,Trust Board,ERNST & YOUNG LLP,27734561,32000,GB10300032263
Department of Health,Southport and Ormskirk Hospital NHS Trust,31/08/2018,External Consultancy Fees,Service Improvement,ERNST & YOUNG LLP,27736385,57890,GB10300032265
Department of Health,Southport and Ormskirk Hospital NHS Trust,31/08/2018,Contr Photocopier Rental,Supplies,DE LAGE LANDEN LEASING LTD,27746569,38523.75,9.93E+13
Department of Health,Southport and Ormskirk Hospital NHS Trust,31/08/2018,NonNHS Trade Pybls Curr,Balance Sheet,NHS SUPPLY CHAIN,27746613,59373.68,1019097166
Department of Health,Southport and Ormskirk Hospital NHS Trust,31/08/2018,Other NHS Payables <1Yr,Balance Sheet,NHS PROFESSIONALS LTD,27746620,123260.44,I000012709P
Department of Health,Southport and Ormskirk Hospital NHS Trust,31/08/2018,Contractual Clinical Srv,Pathology General,ST HELENS & KNOWSLEY HOSPITALS NHS TRUST,27833337,630134,16777423
Department of Health,Southport and Ormskirk Hospital NHS Trust,31/08/2018,NonNHS Trade Pybls Curr,Balance Sheet,NHS SUPPLY CHAIN,27833356,38573.78,1019103666
Department of Health,Southport and Ormskirk Hospital NHS Trust,30/09/2018,Commercial Sector,SIU Intermediate Care Team,REVITALISE RESPITE HOLIDAYS,27884087,37400,550433
Department of Health,Southport and Ormskirk Hospital NHS Trust,30/09/2018,Commercial Sector,Radiology Medical Staff,4 WAYS HEALTHCARE LTD,27884289,27413.2,4WHC04199586
Department of Health,Southport and Ormskirk Hospital NHS Trust,30/09/2018,Other NHS Payables <1Yr,Balance Sheet,NHS PROFESSIONALS LTD,27884528,116066.2,I000012846P
Department of Health,Southport and Ormskirk Hospital NHS Trust,30/09/2018,NonNHS Trade Pybls Curr,Balance Sheet,NHS SUPPLY CHAIN,27884734,54970.59,1019107166
Department of Health,Southport and Ormskirk Hospital NHS Trust,30/09/2018,Energy Management Contr,Utilities SDGH,VEOLIA ENERGY & UTILITY SERVICES UK PLC,27890940,141057.73,90155153
Department of Health,Southport and Ormskirk Hospital NHS Trust,30/09/2018,Energy Management Contr,Utilities ODGH,VEOLIA ENERGY & UTILITY SERVICES UK PLC,27890944,132000,90158540
Department of Health,Southport and Ormskirk Hospital NHS Trust,30/09/2018,Energy Management Contr,Utilities ODGH,VEOLIA ENERGY & UTILITY SERVICES UK PLC,27890947,132000,90158545
Department of Health,Southport and Ormskirk Hospital NHS Trust,30/09/2018,Electricity,Utilities SDGH,NPOWER LTD,27890949,32609.1,K5050003LGU8QQVZ
Department of Health,Southport and Ormskirk Hospital NHS Trust,30/09/2018,Gas,Utilities SDGH,GAZPROM MARKETING & TRADING RETAIL LTD,27890958,46571.81,6405559
Department of Health,Southport and Ormskirk Hospital NHS Trust,30/09/2018,Other NHS Payables <1Yr,Balance Sheet,NHS PROFESSIONALS LTD,27890961,41820.65,I000012655P
Department of Health,Southport and Ormskirk Hospital NHS Trust,30/09/2018,Stocks Finished Goods,Balance Sheet,CELGENE LTD,27890967,-143773.2,8940157354
Department of Health,Southport and Ormskirk Hospital NHS Trust,30/09/2018,NonNHS Trade Pybls Curr,Balance Sheet,L ROWLAND & CO LTD,27890984,161365.19,1800001150
Department of Health,Southport and Ormskirk Hospital NHS Trust,30/09/2018,Other Clinical Costs,Pharmacy,L ROWLAND & CO LTD,27890984,36393,1800001150
Department of Health,Southport and Ormskirk Hospital NHS Trust,30/09/2018,Other Operatg Rev Non NHS,Car Park SDGH,L ROWLAND & CO LTD,27890984,168.88,1800001150
Department of Health,Southport and Ormskirk Hospital NHS Trust,30/09/2018,Other Operatg Rev Non NHS,Pharmacy,L ROWLAND & CO LTD,27890984,-242,1800001150
Department of Health,Southport and Ormskirk Hospital NHS Trust,30/09/2018,Prescription Charges Rev,Pharmacy,L ROWLAND & CO LTD,27890984,-3493.6,1800001150
Department of Health,Southport and Ormskirk Hospital NHS Trust,30/09/2018,Services Received - NHSTs,Human Resources,ST HELENS & KNOWSLEY HOSPITALS NHS TRUST,27890987,175000,16777580
Department of Health,Southport and Ormskirk Hospital NHS Trust,30/09/2018,NHS Prepayments,Balance Sheet,ST HELENS & KNOWSLEY HOSPITALS NHS TRUST,27890990,360000,16777610
Department of Health,Southport and Ormskirk Hospital NHS Trust,30/09/2018,Audit Fees: Internal,Contracted Out Services,ROYAL LIVERPOOL&BROADGREEN UNIVERSITY HOSPITALS NHS TRUST (THE),27890994,29770.75,8610086543
Department of Health,Southport and Ormskirk Hospital NHS Trust,30/09/2018,Other NHS Payables <1Yr,Balance Sheet,NHS PROFESSIONALS LTD,27912378,130167.28,I000012981P
Department of Health,Southport and Ormskirk Hospital NHS Trust,30/09/2018,Med Equip Additions,Balance Sheet,NHS SUPPLY CHAIN,27959366,57400,9059001662
Department of Health,Southport and Ormskirk Hospital NHS Trust,30/09/2018,Income tax - Current,Balance Sheet,INLAND REVENUE CIS,27977467,43447.2,428PZ001404851905
Department of Health,Southport and Ormskirk Hospital NHS Trust,30/09/2018,National Insurance - Curr,Balance Sheet,INLAND REVENUE CIS,27977467,53195.53,428PZ001404851905
Department of Health,Southport and Ormskirk Hospital NHS Trust,30/09/2018,Statutory Mat Pay - Curr,Balance Sheet,INLAND REVENUE CIS,27977467,-2175.08,428PZ001404851905
Department of Health,Southport and Ormskirk Hospital NHS Trust,30/09/2018,Other NHS Payables <1Yr,Balance Sheet,NHS PROFESSIONALS LTD,27983109,41006.08,I000013060P
Department of Health,Southport and Ormskirk Hospital NHS Trust,30/09/2018,NonNHS Trade Pybls Curr,Balance Sheet,NHS SUPPLY CHAIN,27983115,62015.38,1019111190
Department of Health,Southport and Ormskirk Hospital NHS Trust,30/09/2018,Computer Maintenance,IT,SPECIALIST COMPUTER CENTRES PLC,27988714,90708,OPM479115
Department of Health,Southport and Ormskirk Hospital NHS Trust,30/09/2018,Income tax - Current,Balance Sheet,INLAND REVENUE CIS,27998657,1150389.26,428PD001291501905
Department of Health,Southport and Ormskirk Hospital NHS Trust,30/09/2018,National Insurance - Curr,Balance Sheet,INLAND REVENUE CIS,27998657,1355639.96,428PD001291501905
Department of Health,Southport and Ormskirk Hospital NHS Trust,30/09/2018,Statutory Mat Pay - Curr,Balance Sheet,INLAND REVENUE CIS,27998657,-26520.56,428PD001291501905
Department of Health,Southport and Ormskirk Hospital NHS Trust,30/09/2018,Energy Management Contr,Utilities ODGH,VEOLIA ENERGY & UTILITY SERVICES UK PLC,28028754,132000,90161941
Department of Health,Southport and Ormskirk Hospital NHS Trust,30/09/2018,NonNHS Trade Pybls Curr,Balance Sheet,L ROWLAND & CO LTD,28028757,185062.59,1800000625
Department of Health,Southport and Ormskirk Hospital NHS Trust,30/09/2018,Other Clinical Costs,Pharmacy,L ROWLAND & CO LTD,28028757,36393.02,1800000625
Department of Health,Southport and Ormskirk Hospital NHS Trust,30/09/2018,Other Operatg Rev Non NHS,Car Park SDGH,L ROWLAND & CO LTD,28028757,536.45,1800000625
Department of Health,Southport and Ormskirk Hospital NHS Trust,30/09/2018,Other Operatg Rev Non NHS,Pharmacy,L ROWLAND & CO LTD,28028757,-276,1800000625
Department of Health,Southport and Ormskirk Hospital NHS Trust,30/09/2018,Prescription Charges Rev,Pharmacy,L ROWLAND & CO LTD,28028757,-3254.4,1800000625
Department of Health,Southport and Ormskirk Hospital NHS Trust,30/09/2018,Gas,Utilities SDGH,GAZPROM MARKETING & TRADING RETAIL LTD,28028760,87786.67,6502430
Department of Health,Southport and Ormskirk Hospital NHS Trust,30/09/2018,Non NHS Prepayments,Balance Sheet,GE HEALTHCARE LTD,28055004,428149.14,1000012
Department of Health,Southport and Ormskirk Hospital NHS Trust,30/09/2018,Stocks Finished Goods,Balance Sheet,HEALTHCARE AT HOME LTD,28060187,34000,OP/7499854
Department of Health,Southport and Ormskirk Hospital NHS Trust,30/09/2018,Stocks Finished Goods,Balance Sheet,HEALTHCARE AT HOME LTD,28060230,37326.84,OP/7500051
Department of Health,Southport and Ormskirk Hospital NHS Trust,30/09/2018,Stocks Finished Goods,Balance Sheet,HEALTHCARE AT HOME LTD,28060245,26762.64,OP/7500143
Department of Health,Southport and Ormskirk Hospital NHS Trust,30/09/2018,External Consultancy Fees,Service Improvement,ERNST & YOUNG LLP,28105695,50940,GB10300032582
Department of Health,Southport and Ormskirk Hospital NHS Trust,30/09/2018,Contr Premises Security,SECURITY SDGH,SAMSON SECURITY LTD,28124506,27230.4,13138
Department of Health,Southport and Ormskirk Hospital NHS Trust,31/10/2018,Other NHS Payables <1Yr,Balance Sheet,NHS PROFESSIONALS LTD,28151018,113904.87,I000013112P
Department of Health,Southport and Ormskirk Hospital NHS Trust,31/10/2018,Other NHS Payables <1Yr,Balance Sheet,NHS PROFESSIONALS LTD,28151025,41322.62,I000013197P
Department of Health,Southport and Ormskirk Hospital NHS Trust,31/10/2018,NonNHS Trade Pybls Curr,Balance Sheet,NHS SUPPLY CHAIN,28151030,60704.62,1019114588
Department of Health,Southport and Ormskirk Hospital NHS Trust,31/10/2018,NHS Prepayments,Balance Sheet,NHS BLOOD & TRANSPLANT,28151034,48073.43,874002
Department of Health,Southport and Ormskirk Hospital NHS Trust,31/10/2018,Contractual Clinical Srv,Pathology General,ST HELENS & KNOWSLEY HOSPITALS NHS TRUST,28151039,630134,16778066
Department of Health,Southport and Ormskirk Hospital NHS Trust,31/10/2018,Other NHS Payables <1Yr,Balance Sheet,NHS PROFESSIONALS LTD,28151051,123765.28,I000013247P
Department of Health,Southport and Ormskirk Hospital NHS Trust,31/10/2018,Other NHS Payables <1Yr,Balance Sheet,NHS PROFESSIONALS LTD,28151057,48685.36,I000013327P
Department of Health,Southport and Ormskirk Hospital NHS Trust,31/10/2018,NonNHS Trade Pybls Curr,Balance Sheet,NHS SUPPLY CHAIN,28151065,65107.02,1019121559
Department of Health,Southport and Ormskirk Hospital NHS Trust,31/10/2018,Other NHS Payables <1Yr,Balance Sheet,NHS PROFESSIONALS LTD,28151069,120745.99,I000013380P
Department of Health,Southport and Ormskirk Hospital NHS Trust,31/10/2018,Services Received - NHSTs,Human Resources,ST HELENS & KNOWSLEY HOSPITALS NHS TRUST,28151073,175000,16778263
Department of Health,Southport and Ormskirk Hospital NHS Trust,31/10/2018,NHS Prepayments,Balance Sheet,ST HELENS & KNOWSLEY HOSPITALS NHS TRUST,28151077,360000,16778302
Department of Health,Southport and Ormskirk Hospital NHS Trust,31/10/2018,NonNHS Trade Pybls Curr,Balance Sheet,L ROWLAND & CO LTD,28151080,177718.27,1800001270
Department of Health,Southport and Ormskirk Hospital NHS Trust,31/10/2018,Other Clinical Costs,Pharmacy,L ROWLAND & CO LTD,28151080,37828,1800001270
Department of Health,Southport and Ormskirk Hospital NHS Trust,31/10/2018,Other Operatg Rev Non NHS,Pharmacy,L ROWLAND & CO LTD,28151080,-217,1800001270
Department of Health,Southport and Ormskirk Hospital NHS Trust,31/10/2018,Prescription Charges Rev,Pharmacy,L ROWLAND & CO LTD,28151080,-3731.2,1800001270
Department of Health,Southport and Ormskirk Hospital NHS Trust,31/10/2018,NonNHS Trade Pybls Curr,Balance Sheet,NHS SUPPLY CHAIN,28151088,58963.17,1019126118
Department of Health,Southport and Ormskirk Hospital NHS Trust,31/10/2018,Commercial Sector,SIU Intermediate Care Team,REVITALISE RESPITE HOLIDAYS,28167358,37400,550434
Department of Health,Southport and Ormskirk Hospital NHS Trust,31/10/2018,Services Received - NHSTs,R + D Office,ST HELENS & KNOWSLEY HOSPITALS NHS TRUST,28167363,42550,16778187
Department of Health,Southport and Ormskirk Hospital NHS Trust,31/10/2018,Computer Software/License,Management Accounting,SOFTCAT PLC,28169628,36000,INV02002742
Department of Health,Southport and Ormskirk Hospital NHS Trust,31/10/2018,NonRes Bldg Additions,Balance Sheet,CRUDEN PROPERTY SERVICES LTD,28209014,25405.74,992
Department of Health,Southport and Ormskirk Hospital NHS Trust,31/10/2018,Med & Surg Equip Disp,Medical Devices Library,B BRAUN MEDICAL LTD,28228402,-58480.86,62303518
Department of Health,Southport and Ormskirk Hospital NHS Trust,31/10/2018,Contr Premises Security,SECURITY SDGH,SAMSON SECURITY LTD,28245999,28108.8,13197
Department of Health,Southport and Ormskirk Hospital NHS Trust,31/10/2018,Stocks Finished Goods,Balance Sheet,HEALTHCARE AT HOME LTD,28299426,29920,OP/7570620
Department of Health,Southport and Ormskirk Hospital NHS Trust,31/10/2018,Stocks Finished Goods,Balance Sheet,HEALTHCARE AT HOME LTD,28299440,30988.32,OP/7570668
Department of Health,Southport and Ormskirk Hospital NHS Trust,31/10/2018,Income tax - Current,Balance Sheet,INLAND REVENUE CIS,28314672,1051747.1,428PD001291501906
Department of Health,Southport and Ormskirk Hospital NHS Trust,31/10/2018,National Insurance - Curr,Balance Sheet,INLAND REVENUE CIS,28314672,1223892.91,428PD001291501906
Department of Health,Southport and Ormskirk Hospital NHS Trust,31/10/2018,Statutory Mat Pay - Curr,Balance Sheet,INLAND REVENUE CIS,28314672,-26317.84,428PD001291501906
Department of Health,Southport and Ormskirk Hospital NHS Trust,31/10/2018,Income tax - Current,Balance Sheet,INLAND REVENUE CIS,28326653,37154.6,428PZ001404850619
Department of Health,Southport and Ormskirk Hospital NHS Trust,31/10/2018,National Insurance - Curr,Balance Sheet,INLAND REVENUE CIS,28326653,50001.33,428PZ001404850619
Department of Health,Southport and Ormskirk Hospital NHS Trust,31/10/2018,Statutory Mat Pay - Curr,Balance Sheet,INLAND REVENUE CIS,28326653,-1354.68,428PZ001404850619
Department of Health,Southport and Ormskirk Hospital NHS Trust,31/10/2018,NonRes Bldg Additions,Balance Sheet,GE HEALTHCARE LTD,28380449,50688.16,505609
Department of Health,Southport and Ormskirk Hospital NHS Trust,31/10/2018,Commercial Sector,SIU Intermediate Care Team,REVITALISE RESPITE HOLIDAYS,28437871,-37400,2
Department of Health,Southport and Ormskirk Hospital NHS Trust,30/11/2018,Contractual Clinical Srv,Pathology General,ST HELENS & KNOWSLEY HOSPITALS NHS TRUST,28506256,-166259,16779151
Department of Health,Southport and Ormskirk Hospital NHS Trust,30/11/2018,Services Received - NHSTs,Pathology General,ST HELENS & KNOWSLEY HOSPITALS NHS TRUST,28506256,-166259,16779151
Department of Health,Southport and Ormskirk Hospital NHS Trust,30/11/2018,Contractual Clinical Srv,Pathology General,ST HELENS & KNOWSLEY HOSPITALS NHS TRUST,28506262,-11250,16779152
Department of Health,Southport and Ormskirk Hospital NHS Trust,30/11/2018,Services Received - NHSTs,Pathology General,ST HELENS & KNOWSLEY HOSPITALS NHS TRUST,28506262,-56000,16779152
Department of Health,Southport and Ormskirk Hospital NHS Trust,30/11/2018,Computer Maintenance,Radiology,HEALTHCARE SOFTWARE SOLUTIONS LTD,28573670,25612.8,2353
Department of Health,Southport and Ormskirk Hospital NHS Trust,30/11/2018,Med Equip Additions,Balance Sheet,RPA DENTAL EQUIPMENT LTD,28581285,26500,69443
Department of Health,Southport and Ormskirk Hospital NHS Trust,30/11/2018,Other NHS Payables <1Yr,Balance Sheet,NHS PROFESSIONALS LTD,28589373,103289.74,I000013423P
Department of Health,Southport and Ormskirk Hospital NHS Trust,30/11/2018,Other NHS Payables <1Yr,Balance Sheet,NHS PROFESSIONALS LTD,28589374,36949.77,I000013480P
Department of Health,Southport and Ormskirk Hospital NHS Trust,30/11/2018,Energy Management Contr,Utilities ODGH,VEOLIA ENERGY & UTILITY SERVICES UK PLC,28589375,132000,90165464
Department of Health,Southport and Ormskirk Hospital NHS Trust,30/11/2018,Energy Management Contr,Utilities SDGH,VEOLIA ENERGY & UTILITY SERVICES UK PLC,28589376,145606.32,90165520
Department of Health,Southport and Ormskirk Hospital NHS Trust,30/11/2018,Other NHS Payables <1Yr,Balance Sheet,NHS PROFESSIONALS LTD,28589377,119388.39,I000013565P
Department of Health,Southport and Ormskirk Hospital NHS Trust,30/11/2018,Other NHS Payables <1Yr,Balance Sheet,NHS PROFESSIONALS LTD,28589378,85287.56,I000013638P
Department of Health,Southport and Ormskirk Hospital NHS Trust,30/11/2018,NonNHS Trade Pybls Curr,Balance Sheet,NHS SUPPLY CHAIN,28589380,65130.83,1019131772
Department of Health,Southport and Ormskirk Hospital NHS Trust,30/11/2018,Other NHS Payables <1Yr,Balance Sheet,NHS PROFESSIONALS LTD,28589381,112424.21,I000013689P
Department of Health,Southport and Ormskirk Hospital NHS Trust,30/11/2018,Other NHS Payables <1Yr,Balance Sheet,NHS PROFESSIONALS LTD,28589384,171137.65,I000013838P
Department of Health,Southport and Ormskirk Hospital NHS Trust,30/11/2018,Other NHS Payables <1Yr,Balance Sheet,NHS PROFESSIONALS LTD,28589387,58039.22,I000013924P
Department of Health,Southport and Ormskirk Hospital NHS Trust,30/11/2018,NonNHS Trade Pybls Curr,Balance Sheet,NHS SUPPLY CHAIN,28589390,68789.86,1019140297
Department of Health,Southport and Ormskirk Hospital NHS Trust,30/11/2018,Other NHS Payables <1Yr,Balance Sheet,NHS PROFESSIONALS LTD,28589399,128203.24,I000013997P
Department of Health,Southport and Ormskirk Hospital NHS Trust,30/11/2018,Other NHS Payables <1Yr,Balance Sheet,NHS PROFESSIONALS LTD,28589402,48215.36,I000014069P
Department of Health,Southport and Ormskirk Hospital NHS Trust,30/11/2018,NonNHS Trade Pybls Curr,Balance Sheet,NHS SUPPLY CHAIN,28589405,60621.53,1019149263
Department of Health,Southport and Ormskirk Hospital NHS Trust,30/11/2018,Other NHS Payables <1Yr,Balance Sheet,NHS PROFESSIONALS LTD,28589409,128769.97,I000014151P
Department of Health,Southport and Ormskirk Hospital NHS Trust,30/11/2018,Other NHS Payables <1Yr,Balance Sheet,NHS PROFESSIONALS LTD,28589492,134707.63,I000014253P
Department of Health,Southport and Ormskirk Hospital NHS Trust,30/11/2018,SrvcsRecd-FoundationTrust,Gen Med Medical staff,LIVERPOOL HEART & CHEST HOSPITAL NHS TRUST,28612009,29933.18,12773507
Department of Health,Southport and Ormskirk Hospital NHS Trust,30/11/2018,Commercial Sector,SIU Intermediate Care Team,REVITALISE RESPITE HOLIDAYS,28612034,37400,550435
Department of Health,Southport and Ormskirk Hospital NHS Trust,30/11/2018,Commercial Sector,SIU Intermediate Care Team,REVITALISE RESPITE HOLIDAYS,28612043,37400,550435A
Department of Health,Southport and Ormskirk Hospital NHS Trust,30/11/2018,Computer Maintenance,IT,EMIS (EGTON MEDICAL INFORMATION SYSTEMS LTD),28614712,224100,EMSINV039085
Department of Health,Southport and Ormskirk Hospital NHS Trust,30/11/2018,NHS Local Debtors Adj,Balance Sheet,ROCHE DIAGNOSTICS LTD,28614724,140310.3,6570986066
Department of Health,Southport and Ormskirk Hospital NHS Trust,30/11/2018,NHS Local Debtors Adj,Balance Sheet,ROCHE DIAGNOSTICS LTD,28614729,140310.3,6570986065
Department of Health,Southport and Ormskirk Hospital NHS Trust,30/11/2018,NHS Local Debtors Adj,Balance Sheet,ROCHE DIAGNOSTICS LTD,28614734,140310.3,6570986064
Department of Health,Southport and Ormskirk Hospital NHS Trust,30/11/2018,Med Equip Additions,Balance Sheet,LIVANOVA UK LTD,28614786,25200,189192
Department of Health,Southport and Ormskirk Hospital NHS Trust,30/11/2018,Oth Provn Increase Cu,Balance Sheet,NHS SOUTHPORT AND FORMBY CCG,28625052,669664,7013100255
Department of Health,Southport and Ormskirk Hospital NHS Trust,30/11/2018,Oth Provn Increase Cu,Balance Sheet,NHS SOUTH SEFTON CCG,28625053,72208,7013000242
Department of Health,Southport and Ormskirk Hospital NHS Trust,30/11/2018,Oth Provn Increase Cu,Balance Sheet,NHS SOUTH SEFTON CCG,28625054,110088,7013000481
Department of Health,Southport and Ormskirk Hospital NHS Trust,30/11/2018,Oth Provn Increase Cu,Balance Sheet,NHS SOUTHPORT AND FORMBY CCG,28625055,998905,7013100363
Department of Health,Southport and Ormskirk Hospital NHS Trust,30/11/2018,External Contractors,Supplies,LEEDS & YORK PARTNERSHIP NHS FOUNDATION TRUST,28625056,38000,989276
Department of Health,Southport and Ormskirk Hospital NHS Trust,30/11/2018,Other NHS Payables <1Yr,Balance Sheet,NHS PROFESSIONALS LTD,28625067,48721.57,I000013781P
Department of Health,Southport and Ormskirk Hospital NHS Trust,30/11/2018,NonNHS Trade Pybls Curr,Balance Sheet,NHS SUPPLY CHAIN,28625070,55208.94,1019138512
Department of Health,Southport and Ormskirk Hospital NHS Trust,30/11/2018,NHS Prepayments,Balance Sheet,NHS BLOOD & TRANSPLANT,28625072,48073.43,874741
Department of Health,Southport and Ormskirk Hospital NHS Trust,30/11/2018,NonNHS Trade Pybls Curr,Balance Sheet,L ROWLAND & CO LTD,28625086,168125.22,1800001428
Department of Health,Southport and Ormskirk Hospital NHS Trust,30/11/2018,Other Clinical Costs,Pharmacy,L ROWLAND & CO LTD,28625086,36393,1800001428
Department of Health,Southport and Ormskirk Hospital NHS Trust,30/11/2018,Other Operatg Rev Non NHS,Pharmacy,L ROWLAND & CO LTD,28625086,-110,1800001428
Department of Health,Southport and Ormskirk Hospital NHS Trust,30/11/2018,Prescription Charges Rev,Pharmacy,L ROWLAND & CO LTD,28625086,-3414.4,1800001428
Department of Health,Southport and Ormskirk Hospital NHS Trust,30/11/2018,Contractual Clinical Srv,Pathology General,ST HELENS & KNOWSLEY HOSPITALS NHS TRUST,28625090,545548,16778855
Department of Health,Southport and Ormskirk Hospital NHS Trust,30/11/2018,Services Received - NHSTs,Human Resources,ST HELENS & KNOWSLEY HOSPITALS NHS TRUST,28625107,175000,16779024
Department of Health,Southport and Ormskirk Hospital NHS Trust,30/11/2018,NHS Prepayments,Balance Sheet,ST HELENS & KNOWSLEY HOSPITALS NHS TRUST,28625190,360000,16779465
Department of Health,Southport and Ormskirk Hospital NHS Trust,30/11/2018,Finance Lease & HP NCurr,Balance Sheet,DE LAGE LANDEN LEASING LTD,28625198,95115.61,9.56E+13
Department of Health,Southport and Ormskirk Hospital NHS Trust,30/11/2018,Non NHS Prepayments,Balance Sheet,DE LAGE LANDEN LEASING LTD,28625198,3998.49,9.56E+13
Department of Health,Southport and Ormskirk Hospital NHS Trust,30/11/2018,Oth Provn Increase Cu,Balance Sheet,NHS SOUTHPORT AND FORMBY CCG,28625291,523000,7013100524
Department of Health,Southport and Ormskirk Hospital NHS Trust,30/11/2018,Oth Provn Increase Cu,Balance Sheet,NHS SOUTHPORT AND FORMBY CCG,28625295,991384,7013100525
Department of Health,Southport and Ormskirk Hospital NHS Trust,30/11/2018,Other Liabilities - Curr,Balance Sheet,NHS SOUTHPORT AND FORMBY CCG,28625295,137155,7013100525
Department of Health,Southport and Ormskirk Hospital NHS Trust,30/11/2018,NonNHS Trade Pybls Curr,Balance Sheet,NHS SUPPLY CHAIN,28625299,68787.15,1019155461
Department of Health,Southport and Ormskirk Hospital NHS Trust,30/11/2018,Income tax - Current,Balance Sheet,INLAND REVENUE CIS,28647665,1101273.78,428PD001291500719
Department of Health,Southport and Ormskirk Hospital NHS Trust,30/11/2018,National Insurance - Curr,Balance Sheet,INLAND REVENUE CIS,28647665,1242067.22,428PD001291500719
Department of Health,Southport and Ormskirk Hospital NHS Trust,30/11/2018,Statutory Mat Pay - Curr,Balance Sheet,INLAND REVENUE CIS,28647665,-40502.92,428PD001291500719
Department of Health,Southport and Ormskirk Hospital NHS Trust,30/11/2018,Income tax - Current,Balance Sheet,INLAND REVENUE CIS,28662659,39247.42,428PZ001404851907
Department of Health,Southport and Ormskirk Hospital NHS Trust,30/11/2018,National Insurance - Curr,Balance Sheet,INLAND REVENUE CIS,28662659,50221.32,428PZ001404851907
Department of Health,Southport and Ormskirk Hospital NHS Trust,30/11/2018,Statutory Mat Pay - Curr,Balance Sheet,INLAND REVENUE CIS,28662659,-2034.68,428PZ001404851907
Department of Health,Southport and Ormskirk Hospital NHS Trust,30/11/2018,NonRes Bldg Additions,Balance Sheet,CRUDEN PROPERTY SERVICES LTD,28665315,199769.15,1013
Department of Health,Southport and Ormskirk Hospital NHS Trust,30/11/2018,Other NHS Payables <1Yr,Balance Sheet,NHS PROFESSIONALS LTD,28667700,93276.43,I000014331P
Department of Health,Southport and Ormskirk Hospital NHS Trust,30/11/2018,NHS Prepayments,Balance Sheet,ST HELENS & KNOWSLEY HOSPITALS NHS TRUST,28667716,360000,16779653
Department of Health,Southport and Ormskirk Hospital NHS Trust,30/11/2018,Other Liabilities - Curr,Balance Sheet,NHS SOUTHPORT AND FORMBY CCG,28694409,-137155,CONSTRUCTEDCREDIT
Department of Health,Southport and Ormskirk Hospital NHS Trust,30/11/2018,Energy Management Contr,Utilities ODGH,VEOLIA ENERGY & UTILITY SERVICES UK PLC,28701961,132000,90169649
Department of Health,Southport and Ormskirk Hospital NHS Trust,30/11/2018,NonNHS Trade Pybls Curr,Balance Sheet,NHS SUPPLY CHAIN,28701963,66727.54,1019153217
Department of Health,Southport and Ormskirk Hospital NHS Trust,30/11/2018,NHS Prepayments,Balance Sheet,NHS BLOOD & TRANSPLANT,28701984,48073.43,875480
Department of Health,Southport and Ormskirk Hospital NHS Trust,30/11/2018,NonNHS Trade Pybls Curr,Balance Sheet,NHS SUPPLY CHAIN,28702038,62871.41,1019164507
Department of Health,Southport and Ormskirk Hospital NHS Trust,30/11/2018,IT Additions,Balance Sheet,SPECIALIST COMPUTER CENTRES PLC,28721527,58714,OPM511648
Department of Health,Southport and Ormskirk Hospital NHS Trust,30/11/2018,Other NHS Payables <1Yr,Balance Sheet,NHS PROFESSIONALS LTD,28740982,131907.6,I000014399P
Department of Health,Southport and Ormskirk Hospital NHS Trust,30/11/2018,Other NHS Payables <1Yr,Balance Sheet,NHS PROFESSIONALS LTD,28740992,47316.66,I000014476P
Department of Health,Southport and Ormskirk Hospital NHS Trust,30/11/2018,Other NHS Payables <1Yr,Balance Sheet,NHS PROFESSIONALS LTD,28741068,129009.4,I000014538P
Department of Health,Southport and Ormskirk Hospital NHS Trust,30/11/2018,NonNHS Trade Pybls Curr,Balance Sheet,L ROWLAND & CO LTD,28785044,177192.29,1800001665
Department of Health,Southport and Ormskirk Hospital NHS Trust,30/11/2018,Other Clinical Costs,Pharmacy,L ROWLAND & CO LTD,28785044,36393,1800001665
Department of Health,Southport and Ormskirk Hospital NHS Trust,30/11/2018,Other Operatg Rev Non NHS,Car Park SDGH,L ROWLAND & CO LTD,28785044,232.5,1800001665
Department of Health,Southport and Ormskirk Hospital NHS Trust,30/11/2018,Other Operatg Rev Non NHS,Pharmacy,L ROWLAND & CO LTD,28785044,-288.5,1800001665
Department of Health,Southport and Ormskirk Hospital NHS Trust,30/11/2018,Prescription Charges Rev,Pharmacy,L ROWLAND & CO LTD,28785044,-3423.2,1800001665
Department of Health,Southport and Ormskirk Hospital NHS Trust,30/11/2018,NonNHS Trade Pybls Curr,Balance Sheet,NHS SUPPLY CHAIN,28785070,76493.17,1019169876
Department of Health,Southport and Ormskirk Hospital NHS Trust,30/11/2018,NonRes Bldg Additions,Balance Sheet,EFT CONSTRUCTION LTD,28786461,70100.45,671
Department of Health,Southport and Ormskirk Hospital NHS Trust,30/11/2018,Stocks Finished Goods,Balance Sheet,HEALTHCARE AT HOME LTD,28807114,29780,OP/7651760
Department of Health,Southport and Ormskirk Hospital NHS Trust,30/11/2018,Stocks Finished Goods,Balance Sheet,HEALTHCARE AT HOME LTD,28807119,26058.36,OP/7651995
Department of Health,Southport and Ormskirk Hospital NHS Trust,30/11/2018,Stocks Finished Goods,Balance Sheet,HEALTHCARE AT HOME LTD,28807120,28171.2,OP/7652000
Department of Health,Southport and Ormskirk Hospital NHS Trust,30/11/2018,Stocks Finished Goods,Balance Sheet,HEALTHCARE AT HOME LTD,28807121,28875.48,OP/7652033
Department of Health,Southport and Ormskirk Hospital NHS Trust,30/11/2018,Other NHS Payables <1Yr,Balance Sheet,NHS PROFESSIONALS LTD,28818750,44825.89,I000014610P
Department of Health,Southport and Ormskirk Hospital NHS Trust,30/11/2018,Other NHS Payables <1Yr,Balance Sheet,NHS PROFESSIONALS LTD,28818753,143615.75,I000014673P
Department of Health,Southport and Ormskirk Hospital NHS Trust,31/12/2018,Computer Software/License,Integrated Governance,DATIX LTD,28819070,32337.9,SIN003456
Department of Health,Southport and Ormskirk Hospital NHS Trust,31/12/2018,Computer Software/License,IT,PHOENIX SOFTWARE LTD,28832022,63472.08,OPI831184
Department of Health,Southport and Ormskirk Hospital NHS Trust,31/12/2018,Contractual Clinical Srv,Pathology General,ST HELENS & KNOWSLEY HOSPITALS NHS TRUST,28855990,587841,16779803
Department of Health,Southport and Ormskirk Hospital NHS Trust,31/12/2018,External Consultancy Fees,Service Improvement,FOUR EYES INSIGHT LTD,28867023,32008.8,INV1807
Department of Health,Southport and Ormskirk Hospital NHS Trust,31/12/2018,External Consultancy Fees,Service Improvement,FOUR EYES INSIGHT LTD,28867027,48735,INVMIG000327
Department of Health,Southport and Ormskirk Hospital NHS Trust,31/12/2018,NonRes Bldg Additions,Balance Sheet,GE HEALTHCARE LTD,28900161,47477.59,515269
Department of Health,Southport and Ormskirk Hospital NHS Trust,31/12/2018,Commercial Sector,SIU Intermediate Care Team,REVITALISE RESPITE HOLIDAYS,28956349,37400,550436
Department of Health,Southport and Ormskirk Hospital NHS Trust,31/12/2018,Commercial Sector,SIU Intermediate Care Team,REVITALISE RESPITE HOLIDAYS,28956365,37400,550438
Department of Health,Southport and Ormskirk Hospital NHS Trust,31/12/2018,Income tax - Current,Balance Sheet,INLAND REVENUE CIS,28968775,1071814.64,428PD001291501908
Department of Health,Southport and Ormskirk Hospital NHS Trust,31/12/2018,National Insurance - Curr,Balance Sheet,INLAND REVENUE CIS,28968775,1263151.04,428PD001291501908
Department of Health,Southport and Ormskirk Hospital NHS Trust,31/12/2018,Statutory Mat Pay - Curr,Balance Sheet,INLAND REVENUE CIS,28968775,-33793.61,428PD001291501908
Department of Health,Southport and Ormskirk Hospital NHS Trust,31/12/2018,IT Additions,Balance Sheet,DELL CORPORATION LTD,28977098,153230.4,7402490152
Department of Health,Southport and Ormskirk Hospital NHS Trust,31/12/2018,Income tax - Current,Balance Sheet,INLAND REVENUE CIS,28987658,42200.2,428PZ001404851908A
Department of Health,Southport and Ormskirk Hospital NHS Trust,31/12/2018,National Insurance - Curr,Balance Sheet,INLAND REVENUE CIS,28987658,51356.41,428PZ001404851908A
Department of Health,Southport and Ormskirk Hospital NHS Trust,31/12/2018,Statutory Mat Pay - Curr,Balance Sheet,INLAND REVENUE CIS,28987658,-2443.76,428PZ001404851908A
Department of Health,Southport and Ormskirk Hospital NHS Trust,31/12/2018,Stocks Finished Goods,Balance Sheet,HEALTHCARE AT HOME LTD,28988977,34500,OP/7736581
Department of Health,Southport and Ormskirk Hospital NHS Trust,31/12/2018,Services Received - NHSTs,Human Resources,ST HELENS & KNOWSLEY HOSPITALS NHS TRUST,28990887,175000,16779790
Department of Health,Southport and Ormskirk Hospital NHS Trust,31/12/2018,Other NHS Payables <1Yr,Balance Sheet,NHS PROFESSIONALS LTD,28990918,48147.69,I000014768P
Department of Health,Southport and Ormskirk Hospital NHS Trust,31/12/2018,NonNHS Trade Pybls Curr,Balance Sheet,NHS SUPPLY CHAIN,28990940,72154.91,1019174194
Department of Health,Southport and Ormskirk Hospital NHS Trust,31/12/2018,Other NHS Payables <1Yr,Balance Sheet,NHS PROFESSIONALS LTD,28990974,125937.69,I000014823P
Department of Health,Southport and Ormskirk Hospital NHS Trust,31/12/2018,Other NHS Payables <1Yr,Balance Sheet,NHS PROFESSIONALS LTD,28990984,62808.56,I000014913P
Department of Health,Southport and Ormskirk Hospital NHS Trust,31/12/2018,NonNHS Trade Pybls Curr,Balance Sheet,NHS SUPPLY CHAIN,28990996,67811.75,1019178463
Department of Health,Southport and Ormskirk Hospital NHS Trust,31/12/2018,Audit Fees: Internal,Contracted Out Services,ROYAL LIVERPOOL&BROADGREEN UNIVERSITY HOSPITALS NHS TRUST (THE),28991048,29770.75,8610090006
Department of Health,Southport and Ormskirk Hospital NHS Trust,31/12/2018,Other NHS Payables <1Yr,Balance Sheet,NHS PROFESSIONALS LTD,28991090,133241.59,I000014962P
Department of Health,Southport and Ormskirk Hospital NHS Trust,31/12/2018,Other NHS Payables <1Yr,Balance Sheet,NHS PROFESSIONALS LTD,28991137,60433.62,I000015053P
Department of Health,Southport and Ormskirk Hospital NHS Trust,31/12/2018,NonRes Bldg Additions,Balance Sheet,CRUDEN PROPERTY SERVICES LTD,28992308,187702.25,1034
Department of Health,Southport and Ormskirk Hospital NHS Trust,31/12/2018,Professional Fees,Trust Board,COLD HILL CONSULTANCY LIMITED,28992309,32000,1001
Department of Health,Southport and Ormskirk Hospital NHS Trust,31/12/2018,NonNHS Trade Pybls Curr,Balance Sheet,NHS SUPPLY CHAIN,29022199,82250.94,1019183846
Department of Health,Southport and Ormskirk Hospital NHS Trust,31/12/2018,NHS Prepayments,Balance Sheet,NHS BLOOD & TRANSPLANT,29022206,48073.43,876218
Department of Health,Southport and Ormskirk Hospital NHS Trust,31/12/2018,Energy Management Contr,Utilities ODGH,VEOLIA ENERGY & UTILITY SERVICES UK PLC,29077090,55555.84,90158543
Department of Health,Southport and Ormskirk Hospital NHS Trust,31/12/2018,Energy Management Contr,Utilities ODGH,VEOLIA ENERGY & UTILITY SERVICES UK PLC,29077097,58402.12,90158548
Department of Health,Southport and Ormskirk Hospital NHS Trust,31/12/2018,Energy Management Contr,Utilities ODGH,VEOLIA ENERGY & UTILITY SERVICES UK PLC,29077103,68864.68,90158531
Department of Health,Southport and Ormskirk Hospital NHS Trust,31/12/2018,Other NHS Payables <1Yr,Balance Sheet,NHS PROFESSIONALS LTD,29077189,146495.68,I000015103P
Department of Health,Southport and Ormskirk Hospital NHS Trust,31/12/2018,Computer Software/License,Management Accounting,SOFTCAT PLC,29077587,36000,INV02095519
Department of Health,Southport and Ormskirk Hospital NHS Trust,31/12/2018,Professional Fees,Trust Board,COLD HILL CONSULTANCY LIMITED,29093916,32000,1002
Department of Health,Southport and Ormskirk Hospital NHS Trust,31/12/2018,Professional Fees,Trust Board,COLD HILL CONSULTANCY LIMITED,29093922,36800,1003
Department of Health,Southport and Ormskirk Hospital NHS Trust,31/12/2018,NonRes Bldg Additions,Balance Sheet,GE HEALTHCARE LTD,29094099,8704.01,518420
Department of Health,Southport and Ormskirk Hospital NHS Trust,31/01/2019,NonRes Bldg Additions,Balance Sheet,GE HEALTHCARE LTD,29094099,35072.02,518420
Department of Health,Southport and Ormskirk Hospital NHS Trust,31/12/2018,NonNHS Trade Pybls Curr,Balance Sheet,NHS SUPPLY CHAIN,29103768,92493.27,1019189335
Department of Health,Southport and Ormskirk Hospital NHS Trust,31/01/2019,NHS Local Debtors Adj,Balance Sheet,ROCHE DIAGNOSTICS LTD,29149418,140310.3,6571009291
Department of Health,Southport and Ormskirk Hospital NHS Trust,31/01/2019,IT Additions,Balance Sheet,DELL CORPORATION LTD,29149431,34794.22,7402493168
Department of Health,Southport and Ormskirk Hospital NHS Trust,31/01/2019,IT Additions,Balance Sheet,DELL CORPORATION LTD,29149432,34794.22,7402493160
Department of Health,Southport and Ormskirk Hospital NHS Trust,31/01/2019,IT Additions,Balance Sheet,INSIGHT DIRECT (UK) LTD,29150858,26137.48,4184256
Department of Health,Southport and Ormskirk Hospital NHS Trust,31/01/2019,Services Received - NHSTs,Human Resources,ST HELENS & KNOWSLEY HOSPITALS NHS TRUST,29183342,175000,16780406
Department of Health,Southport and Ormskirk Hospital NHS Trust,31/01/2019,NHS Prepayments,Balance Sheet,ST HELENS & KNOWSLEY HOSPITALS NHS TRUST,29183348,360000,16780504
Department of Health,Southport and Ormskirk Hospital NHS Trust,31/01/2019,Other NHS Payables <1Yr,Balance Sheet,NHS PROFESSIONALS LTD,29183364,57648.82,I000015189P
Department of Health,Southport and Ormskirk Hospital NHS Trust,31/01/2019,Other NHS Payables <1Yr,Balance Sheet,NHS PROFESSIONALS LTD,29183370,71091.23,I000015279P
Department of Health,Southport and Ormskirk Hospital NHS Trust,31/01/2019,NonNHS Trade Pybls Curr,Balance Sheet,NHS SUPPLY CHAIN,29183385,29479.85,1019193725
Department of Health,Southport and Ormskirk Hospital NHS Trust,31/01/2019,Other NHS Payables <1Yr,Balance Sheet,NHS PROFESSIONALS LTD,29183388,145511.01,I000015379P
Department of Health,Southport and Ormskirk Hospital NHS Trust,31/01/2019,Contractual Clinical Srv,Pathology General,ST HELENS & KNOWSLEY HOSPITALS NHS TRUST,29183391,587841,16781088
Department of Health,Southport and Ormskirk Hospital NHS Trust,31/01/2019,Non NHS Prepayments,Balance Sheet,GE MEDICAL SYSTEMS LTD,29183895,428149.14,1000016
Department of Health,Southport and Ormskirk Hospital NHS Trust,31/01/2019,IT Additions,Balance Sheet,STRATA HEALTH SOLUTIONS LTD,29189188,149225,414
Department of Health,Southport and Ormskirk Hospital NHS Trust,31/01/2019,NonNHS Trade Pybls Curr,Balance Sheet,L ROWLAND & CO LTD,29193669,177795.19,1800001733
Department of Health,Southport and Ormskirk Hospital NHS Trust,31/01/2019,Other Clinical Costs,Pharmacy,L ROWLAND & CO LTD,29193669,36393,1800001733
Department of Health,Southport and Ormskirk Hospital NHS Trust,31/01/2019,Other Operatg Rev Non NHS,Car Park SDGH,L ROWLAND & CO LTD,29193669,-7408.23,1800001733
Department of Health,Southport and Ormskirk Hospital NHS Trust,31/01/2019,Other Operatg Rev Non NHS,Pharmacy,L ROWLAND & CO LTD,29193669,260,1800001733
Department of Health,Southport and Ormskirk Hospital NHS Trust,31/01/2019,Prescription Charges Rev,Pharmacy,L ROWLAND & CO LTD,29193669,3432,1800001733
Department of Health,Southport and Ormskirk Hospital NHS Trust,31/01/2019,NonNHS Trade Pybls Curr,Balance Sheet,NHS SUPPLY CHAIN,29193677,47170.2,1019196454
Department of Health,Southport and Ormskirk Hospital NHS Trust,31/01/2019,P&M Additions,Balance Sheet,PALFREYMAN POWER LTD,29204294,44400,INV1689
Department of Health,Southport and Ormskirk Hospital NHS Trust,31/01/2019,Professional Fees,Trust Board,COLD HILL CONSULTANCY LIMITED,29232294,22400,1005
Department of Health,Southport and Ormskirk Hospital NHS Trust,31/01/2019,IT Additions,Balance Sheet,DELL CORPORATION LTD,29240970,82653.74,7402495349
Department of Health,Southport and Ormskirk Hospital NHS Trust,31/01/2019,NHS Local Debtors Adj,Balance Sheet,ROCHE DIAGNOSTICS LTD,29261081,-48187.87,6565023130
Department of Health,Southport and Ormskirk Hospital NHS Trust,31/01/2019,Income tax - Current,Balance Sheet,INLAND REVENUE CIS,29278670,1056443.68,428PD001291501909
Department of Health,Southport and Ormskirk Hospital NHS Trust,31/01/2019,National Insurance - Curr,Balance Sheet,INLAND REVENUE CIS,29278670,1240865.05,428PD001291501909
Department of Health,Southport and Ormskirk Hospital NHS Trust,31/01/2019,Statutory Mat Pay - Curr,Balance Sheet,INLAND REVENUE CIS,29278670,-43723.64,428PD001291501909
Department of Health,Southport and Ormskirk Hospital NHS Trust,31/01/2019,Statutory Pat Pay - Curr,Balance Sheet,INLAND REVENUE CIS,29278670,-267.14,428PD001291501909
Department of Health,Southport and Ormskirk Hospital NHS Trust,31/01/2019,Income tax - Current,Balance Sheet,INLAND REVENUE CIS,29292697,39608.6,428PZ001404850919
Department of Health,Southport and Ormskirk Hospital NHS Trust,31/01/2019,National Insurance - Curr,Balance Sheet,INLAND REVENUE CIS,29292697,49995.38,428PZ001404850919
Department of Health,Southport and Ormskirk Hospital NHS Trust,31/01/2019,Statutory Mat Pay - Curr,Balance Sheet,INLAND REVENUE CIS,29292697,-4109.14,428PZ001404850919
Department of Health,Southport and Ormskirk Hospital NHS Trust,31/01/2019,External Consultancy Fees,Service Improvement,FOUR EYES INSIGHT LTD,29302381,54038.04,MIG000275
Department of Health,Southport and Ormskirk Hospital NHS Trust,31/01/2019,External Consultancy Fees,Service Improvement,FOUR EYES INSIGHT LTD,29302399,58311.26,MIG000250
Department of Health,Southport and Ormskirk Hospital NHS Trust,31/01/2019,Modern Matron,Director Of Nursing,UNIVERSITY HOSPITALS OF MORECAMBE BAY NHS FOUNDATION TRUST,29302542,25771.25,1000007397
Department of Health,Southport and Ormskirk Hospital NHS Trust,31/01/2019,Other NHS Payables <1Yr,Balance Sheet,NHS PROFESSIONALS LTD,29302566,73938.04,I000015453P
Department of Health,Southport and Ormskirk Hospital NHS Trust,31/01/2019,Energy Management Contr,Utilities ODGH,VEOLIA ENERGY & UTILITY SERVICES UK PLC,29302583,132000,90180612
Department of Health,Southport and Ormskirk Hospital NHS Trust,31/01/2019,Energy Management Contr,Utilities SDGH,VEOLIA ENERGY & UTILITY SERVICES UK PLC,29302591,145606.32,90180629
Department of Health,Southport and Ormskirk Hospital NHS Trust,31/01/2019,Other NHS Payables <1Yr,Balance Sheet,NHS PROFESSIONALS LTD,29302636,105986.03,I000015510P
Department of Health,Southport and Ormskirk Hospital NHS Trust,31/01/2019,Other NHS Payables <1Yr,Balance Sheet,NHS PROFESSIONALS LTD,29302754,62799.49,I000015587P
Department of Health,Southport and Ormskirk Hospital NHS Trust,31/01/2019,NonNHS Trade Pybls Curr,Balance Sheet,NHS SUPPLY CHAIN,29302782,74013.67,1019200030
Department of Health,Southport and Ormskirk Hospital NHS Trust,31/01/2019,Other NHS Payables <1Yr,Balance Sheet,NHS PROFESSIONALS LTD,29302863,139139.7,I000015649P
Department of Health,Southport and Ormskirk Hospital NHS Trust,31/01/2019,IT Additions,Balance Sheet,DELL CORPORATION LTD,29303949,82653.74,7402495290
Department of Health,Southport and Ormskirk Hospital NHS Trust,31/01/2019,IT Additions,Balance Sheet,INSIGHT DIRECT (UK) LTD,29303973,38511,4199986
Department of Health,Southport and Ormskirk Hospital NHS Trust,31/01/2019,Contr Premises Security,SECURITY SDGH,SAMSON SECURITY LTD,29304759,26352.01,13341
Department of Health,Southport and Ormskirk Hospital NHS Trust,31/01/2019,Contr Premises Security,SECURITY SDGH,SAMSON SECURITY LTD,29304767,27230.41,13411
Department of Health,Southport and Ormskirk Hospital NHS Trust,31/01/2019,Contr Premises Security,SECURITY SDGH,SAMSON SECURITY LTD,29304770,26352,13469
Department of Health,Southport and Ormskirk Hospital NHS Trust,31/01/2019,Contr Premises Security,SECURITY SDGH,SAMSON SECURITY LTD,29304793,28987.2,13561
Department of Health,Southport and Ormskirk Hospital NHS Trust,31/01/2019,IT Additions,Balance Sheet,KAINOS EVOLVE LTD,29322747,96953.9,INV016273
Department of Health,Southport and Ormskirk Hospital NHS Trust,31/01/2019,Computer Software/License,IT,LIQUIDWARE LABS LTD,29322764,26640,1142
Department of Health,Southport and Ormskirk Hospital NHS Trust,31/01/2019,Other Liabilities - Curr,Balance Sheet,LIVERPOOL HEART & CHEST HOSPITAL NHS TRUST,29356047,913.63,12775105
Department of Health,Southport and Ormskirk Hospital NHS Trust,31/01/2019,SrvcsRecd-FoundationTrust,Gen Med Medical staff,LIVERPOOL HEART & CHEST HOSPITAL NHS TRUST,29356047,41678.09,12775105
Department of Health,Southport and Ormskirk Hospital NHS Trust,31/01/2019,NonRes Bldg Additions,Balance Sheet,SOUTHPORT WOODCRAFT,29371445,39990.25,3468
Department of Health,Southport and Ormskirk Hospital NHS Trust,31/01/2019,NonRes Bldg Additions,Balance Sheet,CRUDEN PROPERTY SERVICES LTD,29372983,74511.08,1051
Department of Health,Southport and Ormskirk Hospital NHS Trust,31/01/2019,Consultant,Gen Med Medical staff,ST HELENS & KNOWSLEY HOSPITALS NHS TRUST,29393097,40000,16781179
Department of Health,Southport and Ormskirk Hospital NHS Trust,31/01/2019,NHS Prepayments,Balance Sheet,NHS BLOOD & TRANSPLANT,29393158,48073.43,876958
Department of Health,Southport and Ormskirk Hospital NHS Trust,31/01/2019,NonNHS Trade Pybls Curr,Balance Sheet,L ROWLAND & CO LTD,29393174,152221.28,1800001888
Department of Health,Southport and Ormskirk Hospital NHS Trust,31/01/2019,Other Clinical Costs,Pharmacy,L ROWLAND & CO LTD,29393174,36393,1800001888
Department of Health,Southport and Ormskirk Hospital NHS Trust,31/01/2019,Other Operatg Rev Non NHS,Pharmacy,L ROWLAND & CO LTD,29393174,-231,1800001888
Department of Health,Southport and Ormskirk Hospital NHS Trust,31/01/2019,Prescription Charges Rev,Pharmacy,L ROWLAND & CO LTD,29393174,-2930.4,1800001888
Department of Health,Southport and Ormskirk Hospital NHS Trust,31/01/2019,Contractual Clinical Srv,Pathology General,ST HELENS & KNOWSLEY HOSPITALS NHS TRUST,29393214,587841,16781378
Department of Health,Southport and Ormskirk Hospital NHS Trust,31/01/2019,Commercial Sector,Radiology Medical Staff,4 WAYS HEALTHCARE LTD,29393222,26822.98,4WHC09190953
Department of Health,Southport and Ormskirk Hospital NHS Trust,31/01/2019,Other NHS Payables <1Yr,Balance Sheet,NHS PROFESSIONALS LTD,29393238,96968.21,I000015737P
Department of Health,Southport and Ormskirk Hospital NHS Trust,31/01/2019,Commercial Sector,SIU Intermediate Care Team,REVITALISE RESPITE HOLIDAYS,29393287,29920,555454
Department of Health,Southport and Ormskirk Hospital NHS Trust,31/01/2019,NonNHS Trade Pybls Curr,Balance Sheet,NHS SUPPLY CHAIN,29393319,72902.1,1019205582
Department of Health,Southport and Ormskirk Hospital NHS Trust,31/01/2019,Other NHS Payables <1Yr,Balance Sheet,NHS PROFESSIONALS LTD,29393326,127728.01,I000015784P
Department of Health,Southport and Ormskirk Hospital NHS Trust,31/01/2019,NHS Prepayments,Balance Sheet,ST HELENS & KNOWSLEY HOSPITALS NHS TRUST,29393379,360000,16781541
Department of Health,Southport and Ormskirk Hospital NHS Trust,31/01/2019,Services Received - NHSTs,Human Resources,ST HELENS & KNOWSLEY HOSPITALS NHS TRUST,29393386,175000,16781612
Department of Health,Southport and Ormskirk Hospital NHS Trust,31/10/2018,Long Trm Loans - Non-Curr,Balance Sheet,ITFF/CILFF/RVY/201,,200000,
Department of Health,Southport and Ormskirk Hospital NHS Trust,31/10/2018,NonNHS Trade Pybls Curr,Balance Sheet,SBSEFT1902186942338A,,34423.78,
Department of Health,Southport and Ormskirk Hospital NHS Trust,31/10/2018,Clinical Negligence,Central Reserves,NHSLACONT-T554,,673200.6,
Department of Health,Southport and Ormskirk Hospital NHS Trust,31/10/2018,Interest Payable,Central Reserves,DHPF/ISUCL/RVY/201,,132573.58,
Department of Health,Southport and Ormskirk Hospital NHS Trust,31/10/2018,FM Computer Contracts,Contracted Out Services,NHS SBS SLA,,25838.54,
